Workbook

Sheet Calculator
A1: Substantial Damage Estimate (SDE) Calculator
A2: Version 1.0 (September 2019)
A4: GENERAL INFORMATION
A5: Property Address | D5: Assessment Date
A6: 502 flooded st
A7: Inspector/Team | B7: Cause of Damage | C7: Flood Depth Above Ground | D7: Flood Depth Above Floor | E7: Flood Duration
A8: Team 1 | B8: Flood | C8: 41 | D8: 12
A9: Comments
A12: STRUCTURE INFORMATION
A13: Structure Type | B13: Residential
A14: Residential Type | B14: Single Family Residence
A15: Number of Stories | B15: One Story (Standard)
A16: Foundation | B16: Crawlspace
A17: Superstructure | B17: Stud-framed (Standard)
A18: Roof Covering | B18: Shingles - Asphalt, Wood (Standard)
A19: Exterior Finish | B19: Brick Veneer
A20: Heating and Cooling | B20: Heating and/or Cooling
A21: Structure Use | B21: Select One
A22: Story | B22: 1 Story
A23: Sprinkler | B23: No
A24: Conveyance | B24: No
A25: Depreciation Determination | B25: 24
A26: Depreciation Value | B26: =IFERROR(VLOOKUP(B25,RefLookup!$A$14:$B$19,2,FALSE),0.242) -> 0.242
A27: Total Square Footage | B27: 1200
A28: Quality | B28: Average
A29: Geographic Adjustment | B29: 1
A30: Base Cost ($/sq ft) | B30: 100
A31: Element Percentage Lookup | B31: =RefLookup!$B$37 -> 1232232
A33: ELEMENT DAMAGES
A34: Element | B34: Percent Damaged (Field Assigned) | C34: Element Percentage | D34: Element Cost | E34: Damage Value
A35: Foundation | B35: 25 | C35: =IF($B$13=RefLookup!$A$3,VLOOKUP($B$31,Res_Lookup!$A$7:$N$23632,2,FALSE),(IF($B$13=RefLookup!$A$4,VLOOKUP($B$31,NonRes_Lookup!$A$7:$H$331,2,FALSE),""))) -> 8 | D35: =IFERROR(C35*$B$52/100,"") -> 9600 | E35: =IFERROR(D35*B35/100,"") -> 2400
A36: Superstructure | B36: 5 | C36: =IF($B$13=RefLookup!$A$3,VLOOKUP($B$31,Res_Lookup!$A$7:$N$23632,3,FALSE),VLOOKUP($B$31,NonRes_Lookup!$A$7:$H$331,3,FALSE)) -> 14.6 | D36: 17520 | E36: 876
A37: Roof Covering | B37: 0 | C37: =IF($B$13=RefLookup!$A$3,VLOOKUP($B$31,Res_Lookup!$A$7:$N$23632,4,FALSE),VLOOKUP($B$31,NonRes_Lookup!$A$7:$H$331,4,FALSE)) -> 3.8 | D37: 4560 | E37: 0
A38: Exterior Finish | B38: 5 | C38: =IF($B$13=RefLookup!$A$3,VLOOKUP($B$31,Res_Lookup!$A$7:$N$23632,5,FALSE),"") -> 17.4 | D38: 20880 | E38: 1044
A39: Interior Finish | B39: 32 | C39: =IF($B$13=RefLookup!$A$3,VLOOKUP($B$31,Res_Lookup!$A$7:$N$23632,6,FALSE),"") -> 11.5 | D39: 13800 | E39: 4416
A40: Doors and Windows | B40: 43 | C40: =IF($B$13=RefLookup!$A$3,VLOOKUP($B$31,Res_Lookup!$A$7:$N$23632,7,FALSE),"") -> 13.7 | D40: 16440 | E40: 7069.2
A41: Cabinets and Countertops | B41: 70 | C41: =IF($B$13=RefLookup!$A$3,VLOOKUP($B$31,Res_Lookup!$A$7:$N$23632,8,FALSE),"") -> 3.9 | D41: 4680 | E41: 3276
A42: Floor Finish | B42: 100 | C42: =IF($B$13=RefLookup!$A$3,VLOOKUP($B$31,Res_Lookup!$A$7:$N$23632,9,FALSE),"") -> 6.8 | D42: 8160 | E42: 8160
A43: Plumbing | B43: 5 | C43: =IF($B$13=RefLookup!$A$3,VLOOKUP($B$31,Res_Lookup!$A$7:$N$23632,10,FALSE),VLOOKUP($B$31,NonRes_Lookup!$A$7:$H$331,5,FALSE)) -> 7.5 | D43: 9000 | E43: 450
A44: Electrical | B44: 10 | C44: =IF($B$13=RefLookup!$A$3,VLOOKUP($B$31,Res_Lookup!$A$7:$N$23632,11,FALSE),VLOOKUP($B$31,NonRes_Lookup!$A$7:$H$331,6,FALSE)) -> 4.3 | D44: 5160 | E44: 516
A45: Appliances | B45: 50 | C45: =IF($B$13=RefLookup!$A$3,VLOOKUP($B$31,Res_Lookup!$A$7:$N$23632,12,FALSE),"") -> 3.6 | D45: 4320 | E45: 2160
A46: Interiors | C46: =IF($B$13=RefLookup!$A$4,VLOOKUP($B$31,NonRes_Lookup!$A$7:$H$331,7,FALSE),"") -> 
A47: HVAC | B47: 25 | C47: =IF($B$13=RefLookup!$A$3,VLOOKUP($B$31,Res_Lookup!$A$7:$N$23632,13,FALSE),VLOOKUP($B$31,NonRes_Lookup!$A$7:$H$331,8,FALSE)) -> 4.9 | D47: =IFERROR(C47*$B$52/100,"") -> 5880 | E47: =IFERROR(D47*B47/100,"") -> 1470
A48: Skirting / Forms Piers | B48: 0 | C48: =IF($B$13=RefLookup!$A$3,VLOOKUP($B$31,Res_Lookup!$A$7:$N$23632,14,FALSE),"") -> 0 | D48: 0 | E48: 0
A49: Totals | C49: =SUM(C35:C48) -> 100 | D49: =SUM(D35:D48) -> 120000 | E49: =SUM(E35:E48) -> 31837.2
A51: DAMAGE SUMMARY
A52: Replacement Cost | B52: =$B$27*$B$29*$B$30 -> 120000
A53: Computed Damages | B53: =E49 -> 31837.2
A54: Computed Actual Cash Value | B54: =B52*(1-$B$26) -> 90960
A55: Repair/Reconstruction % (Overall %Damaged) | B55: =IFERROR(E49/B54,"Missing Input Data Value") -> 0.3500131926
A56: Final Determination | B56: =IF(AND(B55>=0,B55<0.5),"Not Substantially Damaged",IF(AND(B55>=0.5,B55<=1),"Substantially Damaged","")) -> Not Substantially Damaged
A57: =IF(B57<>"","Error(s)","") -> Error(s) | B57: =IF(OR(B31="Default",B27=0,ISERROR(VLOOKUP(B25,RefLookup!$A$14:$B$19,2,FALSE))),"Missing Data and/or Defaulting to 'average' Element Percentages. Check Input Values","") -> Missing Data and/or Defaulting to 'average' Element Percentages. Check Input Values

Sheet Batch
A1: SDE Calculator - Batch Mode
A2: Version 1.0 (September 2019)
A4: To use Batch Spreadheet: (1) Clear any existing/unwanted records; (2) Add SDE inspection records starting on row 7; (3) Click 'Batch SDE' button; (4) review results starting in column AK
A5: SDE BATCH IMPORT RECORDS | AK5: SDE CALCULATION RESULTS
A6: Unique ID | B6: Address | C6: Structure Type | D6: Residential Type | E6: Foundation | F6: Superstructure | G6: Roof Covering | H6: Exterior Finish | I6: Heating and Cooling | J6: Number of Stories | K6: Cause of Damage | L6: Foundation Damage | M6: Superstructure Damage | N6: Roof Covering Damage | O6: Exterior Finish Damage | P6: Interior Finish Damage | Q6: Doors and Windows Damage | R6: Cabinets and Countertops Damage | S6: Floor Finish Damage | T6: Plumbing Damage | U6: Electrical Damage | V6: Appliances Damage | W6: HVAC Damage | X6: Skirting / Forms Piers Damage | Y6: Team | Z6: Depth of Water Above Ground | AA6: Depth of Water Above Lowest Floor | AB6: Comments | AC6: Assessment Date | AD6: Assessment ID | AE6: Total Square Footage | AF6: Depreciation Determination | AG6: Geographic Adjustment | AH6: Base Cost ($/ft) | AI6: NonResidential Interior Damage | AK6: $ Replacement Cost | AL6: $ Computed Damages | AM6: Percent Depreciation | AN6: Computed Actual Cash Value | AO6: Overall Percent Damage | AP6: Final Determination | AQ6: Flagged Error (Y/N)
A7: 6 | B7: 758 springs Ave | C7: Residential | D7: Single Family Residence | E7: Piers and Posts | F7: Stud-framed (Standard) | G7: Shingles - Asphalt, Wood (Standard) | H7: Siding or Stucco (Standard) | I7: Heating and/or Cooling | J7: Two or More Stories | K7: Flood and Wind | L7: 0 | M7: 0 | N7: 0 | O7: 10 | P7: 0 | Q7: 0 | R7: 0 | S7: 0 | T7: 0 | U7: 0 | V7: 0 | W7: 0 | X7: 0 | Y7: Team 1 | Z7: 5 | AA7: 0 | AC7: 2019-09-11T16:25:49 | AE7: 1000 | AF7: 26 | AG7: 1 | AH7: 150
A8: 8 | B8: 754 springs ave | C8: Residential | D8: Single Family Residence | E8: Piers and Posts | F8: Stud-framed (Standard) | G8: Shingles - Asphalt, Wood (Standard) | H8: Siding or Stucco (Standard) | I8: Heating and/or Cooling | J8: One Story (Standard) | K8: Flood and Wind | L8: 5 | M8: 0 | N8: 5 | O8: 10 | P8: 0 | Q8: 0 | R8: 0 | S8: 0 | T8: 0 | U8: 0 | V8: 0 | W8: 0 | X8: 0 | Y8: Team 1 | Z8: 0 | AA8: 0 | AC8: 2019-09-11T16:41:03 | AE8: 1500 | AF8: 26 | AG8: 1 | AH8: 150
A9: 9 | B9: 742 Spring Ave | C9: Residential | D9: Single Family Residence | E9: Piles | F9: Stud-framed (Standard) | G9: Shingles - Asphalt, Wood (Standard) | H9: Siding or Stucco (Standard) | I9: Heating and/or Cooling | J9: Two or More Stories | K9: Flood and Wind | L9: 5 | M9: 0 | N9: 0 | O9: 15 | P9: 0 | Q9: 0 | R9: 0 | S9: 0 | T9: 2 | U9: 0 | V9: 0 | W9: 0 | Y9: Team 3 | Z9: 5 | AA9: 0 | AB9: Replace slab? | AC9: 2019-09-11T16:41:14 | AE9: 900 | AF9: 26 | AG9: 1 | AH9: 150
A10: 10 | B10: 740 Springs Ave | C10: Residential | D10: Single Family Residence | E10: Piles | F10: Stud-framed (Standard) | G10: Shingles - Asphalt, Wood (Standard) | H10: Siding or Stucco (Standard) | I10: Heating and/or Cooling | J10: One Story (Standard) | K10: Flood and Wind | L10: 5 | M10: 0 | N10: 0 | O10: 5 | P10: 0 | Q10: 0 | R10: 0 | S10: 0 | T10: 2 | U10: 0 | V10: 0 | W10: 0 | Y10: Team 3 | Z10: 5 | AA10: 0 | AB10: Repairing beach access deck | AC10: 2019-09-11T16:49:54 | AE10: 1000 | AF10: 26 | AG10: 1 | AH10: 150
A11: 11 | B11: 750 springs ave | C11: Residential | D11: Single Family Residence | E11: Piles | F11: Stud-framed (Standard) | G11: Shingles - Asphalt, Wood (Standard) | H11: Siding or Stucco (Standard) | I11: Heating and/or Cooling | J11: Two or More Stories | K11: Flood and Wind | L11: 5 | M11: 0 | N11: 0 | O11: 5 | P11: 0 | Q11: 0 | R11: 0 | S11: 0 | T11: 0 | U11: 0 | V11: 0 | W11: 0 | X11: 0 | Y11: Team 1 | Z11: 0 | AE11: 1000 | AF11: 26 | AG11: 1 | AH11: 150
A12: 12 | B12: 752 Springs Ave | C12: Residential | D12: Single Family Residence | E12: Slab - on - Grade | F12: Stud-framed (Standard) | G12: Standard Seam (Metal) | H12: Siding or Stucco (Standard) | I12: Heating and/or Cooling | J12: Two or More Stories | K12: Flood | L12: 5 | M12: 0 | N12: 0 | O12: 5 | P12: 0 | Q12: 0 | R12: 0 | S12: 0 | T12: 0 | U12: 0 | V12: 0 | W12: 0 | Y12: Team 2 | Z12: 5 | AA12: 0 | AC12: 2019-09-11T16:55:08 | AE12: 1000 | AF12: 26 | AG12: 1 | AH12: 150
A13: 13 | B13: 738 Springs Ave | C13: Residential | D13: Single Family Residence | E13: Piles | F13: Stud-framed (Standard) | G13: Shingles - Asphalt, Wood (Standard) | H13: Siding or Stucco (Standard) | I13: Heating and/or Cooling | J13: Two or More Stories | K13: Flood and Wind | L13: 10 | M13: 0 | O13: 5 | P13: 0 | Q13: 0 | R13: 0 | S13: 0 | T13: 2 | U13: 0 | V13: 0 | W13: 0 | X13: 0 | Y13: Team 3 | Z13: 5 | AA13: 0 | AB13: Extensive deck repair needed | AC13: 2019-09-11T17:00:05 | AE13: 1000 | AF13: 26 | AG13: 1 | AH13: 150
A14: 14 | B14: 748. Springs ave | C14: Residential | D14: Single Family Residence | E14: Piers and Posts | F14: Stud-framed (Standard) | G14: Shingles - Asphalt, Wood (Standard) | H14: Siding or Stucco (Standard) | I14: Heating and/or Cooling | J14: Two or More Stories | K14: Flood and Wind | L14: 5 | M14: 5 | N14: 5 | O14: 15 | P14: 0 | T14: 5 | Y14: Team 1 | AC14: 2019-09-11T05:01:46 | AE14: 1000 | AF14: 26 | AG14: 1 | AH14: 150

Sheet About
A1: ABOUT SDE CALCULATOR
A2: SCDNR Flood Mitigation Data Compilation Tool
A3: General Information The SCDNR Flood Mitigation Data Compilation Tool was developed by ESP Associates, Inc. under contract with SCDNR. The SDE Calculator was developed to assist SCDNR with post disaster Substantial Damage Estimates across the state of South Carolina. The calculator uses the field assessment data in conjunction with FEMA SDE standards to calculate computed damages and repair/reconstruction percentages. The results produced by the calculator can be used to determine if a property is substantially damaged. This calculator is based on the FEMA SDE Application methodology and is using the application's source data to compute damages. Using the SDE Calculator The SDE Calculator spreadsheet model contains 2 visible screens (i.e. worksheets) that can be used to calculate damages for one or more properties. The batch process includes Macros. Please refer to User Guide worksheet for detailed information about the model and any model function issues. The cells are color-coded in the individual calculator worksheet as follows:
B18: Green cells indicate data entry cells. The information in these cells is used in program calculations. Some of these fields can only accept certain values.
B21: Dark gray cells indicate inactive data entry cells. These cells' values are not used in the program calculations. The gray cells are visual assistance to help indicate which cells are required by the program based on the residency type.
B25: Light gray cells are additional values used by the program to calculate substantial damage based on the data entry cells. The user cannot edit these cells.
B28: Light blue cells do not have direct impact on actual calculation. It is used to validate other data entry values.
B31: Light orange cells contain model calculation results. The user cannot edit these cells.
B33: Cyan cells indicate values in the Batch worksheet that were not collected through the assessment. These values should be populated manually.
A36: Documentation "Tips" for many data entry parameters are available in the program. For additional information about Substantial Damage please refer to the FEMA Substantial Damage Estimator User Manual and Field Workbook. DISCLAIMER Use of this software is at ones own risk. Neither SCDNR or ESP Associates, Inc. assume any responsibility for the installation, use, calculations, results, and/or conclusions from the SDE Calculator. Please document and report any problems discovered with this version of the SDE Calculator to SCDNR at (803) 734-3672

Sheet UserGuide
A1: User Guide
A2: SCDNR Flood Mitigation Data Compilation Tool
A3: The SDE Calculator 1.0 is a calculator spreadsheet model based on the FEMA SDE Application. All input data and methodologies used to produce final determination have been taken from the FEMA SDE Application Version 3.0. This user guide is provided to help users with this model. The user should refer back to the FEMA Substantial Damage Estimator (SDE) User Manual and Field Workbook for any additional information.
A8: The SDE Calculator Workbook includes 2 visible screens that are used to calculate damages for one or multiple properties. Below is a brief explanation on how each worksheet operates.
A11: Interactive Calculator Mode (Calculator Tab)
A12: The calculator worksheet is an independent and interactive calculator that can be used to calculate damages for individual properties. This work book has 4 parts; General information, structure information, element damages and damage summary.
A15: General Information box is used to put general information about the property and assessment. The information in this box is only informative and would not impact the assessment. This information includes the property address, cause of damage, depth of water above ground and lowest floor and the assessment date.
A29: Structure information box represents information about the property. User should choose an option from the dropdown fields to populate the structure information. Cells relevant to damage calculations remain green while all non-relevant cells turn to dark gray. Please refer to the FEMA SDE user manual for detailed explanation on each element type.
A50: Element damage box represents the field assessment damages. User should enter the estimated percent damage for each relevant element in the Percent Damaged (Field Assigned) column. Element percentages are derived from structure information entered above, based on FEMA methodology. Individual element costs/value and damages are computed and shown in the light orange cells. All non-relevant cells turn to dark gray. Please refer to FEMA SDE user manual for guidelines on depth/damage standards (Appendix E and F).
A69: Damage summary box shows the final assessment results. It includes replacement cost as well as computed actual cash (i.e. depreciated) value of the property as well as the computed overall damages and final determination. If one or more input values are incorrect a message will pop up to inform the user to review input values and make corrections.
A81: Batch Mode (Batch Tab)
A82: This worksheet can be used to batch calculate the data that is collected in field. The table is generally structured based on the SCDNR Arc Collector SDE application, however, additional informational and required fields have been added to allow the tool to run (see next paragraph). Please make sure that the data has been entered correctly for each field. Spelling and other errors in the input data may cause errors. Table Heading colors are based on the Calculator worksheet colors, with one exception. The user can copy and paste the collector output data on this worksheet, however the model requires additional information to calculate damages. If Depreciation Determination and Geographic Adjustment values are not defined by user the program will default them as "Average" and "1.0".
A90: The current SCDNR Arc Collector application that is being used by SCDNR does not include the total square footage of the structure. The values in this field should be manually populated. If no public records (i.e. property tax assessment data, Zillow, etc.) are available for the property, user should estimate the square footage based on assessment pictures, aerial imagery. In addition, the user may use the building footprints provided as part of this project to estimate the total square footage. However user should be aware that these building footprints are not perfect and may not represent the actual building outline.
A107: User can use the "Run Batch SDE" to calculate damages for all properties. A message will pop up asking the user if they would like to create individual PDF report for each record. This will result in the model to create individual PDF files in the same location where the calculator is stored. The tool will loop through all the rows populated by the user and add resulting SDE calculations in the orange highlighted columns to the right of the main table. If the user elects to create PDF reports, the PDF files are named with the Unique ID as their identifier and stored in the same directory as the spreadsheet tool. The SDE calculation results includes Flagged errors that can help user identify issues with the assessment entry.
A136: Troubleshooting
A137: The SDE Calculator model uses macros to calculate the damages. If the Macros are not enabled on this workbook the model cannot run the analysis to calculate the damages. Please enable content if a "SECURITY WARNING" message is visible on the screen. To check or change the default settings go to "Trust Center" under Options. For any other inquires or issues please contact the developers.
A177: The program is designed to use default values if there is an error in the input data (i.e. typo, invalid input data). Limited error execution is also coded in the program. If a program execution error is returned when running in batch mode, the record/row causing the error can normally be identified. The first line with no calculation results is likely causing the error. Review and correct the records and try rerunning.

Sheet RefLookup (hidden)
A1: General Codes | D1: Residential Codes | H1: Non-Residential Codes
A2: Structure Type | B2: Code | D2: Roof Covering | E2: Code | H2: Structure Use | I2: Code | K2: Cause of Damage
A3: Residential | B3: 1 | D3: Select One | E3: 1 | H3: Select One | I3: 00 | K3: Fire
A4: Non-Residential | B4: 2 | D4: Shingles - Asphalt, Wood (Standard) | E4: 2 | H4: Office building | I4: 01 | K4: Flood
D5: Clay Tile | E5: 3 | H5: Department store | I5: 02 | K5: Flood and Wind
A6: Quality | D6: Slate | E6: 5 | H6: Motel | I6: 03 | K6: Other
A7: Low | D7: Standing Seam (Metal) | E7: 6 | H7: Restaurant | I7: 04 | K7: Seismic
A8: Budget | H8: Commercial retail | I8: 05 | K8: Wind
A9: Average | D9: Residence Type | E9: Code | H9: Strip mall | I9: 06
A10: Good | D10: Select One | E10: 0 | H10: Convenience store | I10: 07
A11: Excellent | D11: Single Family Residence | E11: 1 | H11: Fire station | I11: 08
D12: Town or Row House | E12: 2 | H12: Elementary school | I12: 09
A13: Description | B13: Depreciation Value | D13: Manufactured House | E13: 3 | H13: Apartments | I13: 10
A14: 1- Very Poor Condition | B14: 0.899 | H14: Courthouse | I14: 11
A15: 2- Requires Extensive Repairs | B15: 0.665 | D15: Exterior Finish | E15: Code | H15: Grocery store | I15: 12
A16: 3- Requires Some Repairs | B16: 0.388 | D16: Select One | E16: 1 | H16: Mini-warehouse | I16: 13
A17: 4- Average Condition | B17: 0.242 | D17: Siding or Stucco (Standard) | E17: 2 | H17: Hospital | I17: 14
A18: 5- Above Average Condition | B18: 0.134 | D18: Brick Veneer | E18: 3 | H18: High school | I18: 15
A19: 6- Excellent Condition | B19: 0.029 | D19: EIFS (Exterior Insulation Finishing System) | E19: 4 | H19: Police station | I19: 16
H20: Industrial | I20: 17
A21: Element | B21: Code | D21: Foundation | E21: Code | H21: Hotel | I21: 18
A22: Structure Type | B22: =VLOOKUP(Calculator!B13,RefLookup!$A$3:$B$4,2,FALSE) -> 1 | D22: Select One | E22: 1 | H22: Long-term care facility | I22: 19
A23: Residential Type | B23: =VLOOKUP(Calculator!B14,RefLookup!$D$10:$E$13,2,FALSE) -> 1 | D23: Continuous Wall w/Slab (Standard) | E23: 2 | H23: Auditorium | I23: 20
A24: Number of Stories | B24: =VLOOKUP(Calculator!B15,RefLookup!$D$36:$E$38,2,FALSE) -> 2 | D24: Crawlspace | E24: 3 | H24: House of worship | I24: 21
A25: Foundation | B25: =VLOOKUP(Calculator!B16,RefLookup!$D$22:$E$28,2,FALSE) -> 3 | D25: Piles | E25: 4 | H25: Fast food restaurant | I25: 22
A26: Superstructure | B26: =VLOOKUP(Calculator!B17,RefLookup!$D$41:$E$45,2,FALSE) -> 2 | D26: Slab-on-Grade | E26: 5 | H26: Municipal building | I26: 23
A27: Roof Covering | B27: =VLOOKUP(Calculator!B18,RefLookup!$D$3:$E$7,2,FALSE) -> 2 | D27: Piers and Posts | E27: 6
A28: Exterior Finish | B28: =VLOOKUP(Calculator!B19,RefLookup!$D$16:$E$19,2,FALSE) -> 3 | D28: Basement | E28: 7 | H28: Conveyance | I28: Code
A29: Heating and Cooling | B29: =VLOOKUP(Calculator!B20,RefLookup!$D$31:$E$33,2,FALSE) -> 2 | H29: Select One | I29: 1
A30: Structure Use | B30: =VLOOKUP(Calculator!B21,RefLookup!$H$3:$I$26,2,FALSE) -> 00 | D30: HVAC | E30: Code | H30: No | I30: 2
A31: Story | B31: =VLOOKUP(Calculator!B22,RefLookup!H39:I41,2,FALSE) -> 1 | D31: Select One | E31: 1 | H31: Yes | I31: 3
A32: Sprinkler | B32: =VLOOKUP(Calculator!B23,RefLookup!H34:I36,2,FALSE) -> 2 | D32: Heating and/or Cooling | E32: 2
A33: Conveyance | B33: =VLOOKUP(Calculator!B24,RefLookup!H29:I31,2,FALSE) -> 2 | D33: None | E33: 3 | H33: Sprinkler | I33: Code
A34: LookupCalcCode | B34: =IF(B22=$B$3,B23&B24&B25&B26&B27&B28&B29,B30&B31&B32&B33) -> 1232232 | H34: Select One | I34: 1
A35: Res Code | B35: =IF(B22=$B$4,"NA",IF(B22=$B$3,VLOOKUP(B34,Res_Lookup!$A$7:$A$23632,1),"Default)")) -> 1232232 | D35: Story | E35: Code | H35: No | I35: 2
A36: Non-Res Code | B36: =IF(B22=$B$3,"NA",(IF(B22=$B$4,VLOOKUP(B34,NonRes_Lookup!$A$7:$A$331,1,FALSE),"Default"))) -> NA | D36: Select One | E36: 1 | H36: Yes | I36: 3
A37: Final | B37: =IFERROR(IF(AND(B35="NA",B36<>"NA"),B36,IF(AND(B36="NA",B35<>"NA"),B35,"Default")),"Default") -> 1232232 | D37: One Story (Standard) | E37: 2
D38: Two or More Stories | E38: 3 | H38: Story | I38: Code
H39: 1 Story | I39: 1
D40: Super Structure | E40: Code | H40: 2 thru 4 | I40: 2
D41: Select One | E41: 1 | H41: 5 or more | I41: 3
D42: Stud-framed (Standard) | E42: 2
D43: Common Brick | E43: 3
D44: ICF (Insulating Concrete Form) | E44: 4
D45: Masonry | E45: 5

Sheet Res_Lookup (hidden)
A1: Residential Element Percent
A2: SDE Application
A3: 2019-05-14
A6: Lookup | B6: Foundation | C6: Superstructure | D6: Roof Covering | E6: Exterior Finish | F6: Interior Finish | G6: Doors and Windows | H6: Cabinets and Countertops | I6: Floor Finish | J6: Plumbing | K6: Electrical | L6: Appliances | M6: Hvac | N6: Skirting / Forms Piers
A7: Default | B7: 11.9 | C7: 13.3 | D7: 4.3 | E7: 6.9 | F7: 13 | G7: 15.6 | H7: 4.4 | I7: 7.7 | J7: 8.4 | K7: 4.8 | L7: 4.1 | M7: 5.6 | N7: 0
A8: 1111111 | B8: 11.9 | C8: 13.3 | D8: 4.3 | E8: 6.9 | F8: 13 | G8: 15.6 | H8: 4.4 | I8: 7.7 | J8: 8.4 | K8: 4.8 | L8: 4.1 | M8: 5.6 | N8: 0
A9: 1111112 | B9: 11.9 | C9: 13.3 | D9: 4.3 | E9: 6.9 | F9: 13 | G9: 15.6 | H9: 4.4 | I9: 7.7 | J9: 8.4 | K9: 4.8 | L9: 4.1 | M9: 5.6 | N9: 0
A10: 1111113 | B10: 12.6 | C10: 14.1 | D10: 4.5 | E10: 7.3 | F10: 13.8 | G10: 16.5 | H10: 4.7 | I10: 8.2 | J10: 8.9 | K10: 5.1 | L10: 4.3 | M10: 0 | N10: 0
A11: 1111121 | B11: 11.9 | C11: 13.3 | D11: 4.3 | E11: 6.9 | F11: 13 | G11: 15.6 | H11: 4.4 | I11: 7.7 | J11: 8.4 | K11: 4.8 | L11: 4.1 | M11: 5.6 | N11: 0
A12: 1111122 | B12: 11.9 | C12: 13.3 | D12: 4.3 | E12: 6.9 | F12: 13 | G12: 15.6 | H12: 4.4 | I12: 7.7 | J12: 8.4 | K12: 4.8 | L12: 4.1 | M12: 5.6 | N12: 0
A13: 1111123 | B13: 12.6 | C13: 14.1 | D13: 4.5 | E13: 7.3 | F13: 13.8 | G13: 16.5 | H13: 4.7 | I13: 8.2 | J13: 8.9 | K13: 5.1 | L13: 4.3 | M13: 0 | N13: 0
A14: 1111131 | B14: 10.5 | C14: 11.8 | D14: 3.8 | E14: 17.4 | F14: 11.6 | G14: 13.8 | H14: 3.9 | I14: 6.9 | J14: 7.5 | K14: 4.3 | L14: 3.6 | M14: 4.9 | N14: 0
A15: 1111132 | B15: 10.5 | C15: 11.8 | D15: 3.8 | E15: 17.4 | F15: 11.6 | G15: 13.8 | H15: 3.9 | I15: 6.9 | J15: 7.5 | K15: 4.3 | L15: 3.6 | M15: 4.9 | N15: 0
A16: 1111133 | B16: 11.1 | C16: 12.4 | D16: 4 | E16: 18.3 | F16: 12.2 | G16: 14.5 | H16: 4.1 | I16: 7.2 | J16: 7.9 | K16: 4.5 | L16: 3.8 | M16: 0 | N16: 0
A17: 1111141 | B17: 11.4 | C17: 12.7 | D17: 4.1 | E17: 11.1 | F17: 12.4 | G17: 14.8 | H17: 4.2 | I17: 7.4 | J17: 8.1 | K17: 4.6 | L17: 3.9 | M17: 5.3 | N17: 0
A18: 1111142 | B18: 11.4 | C18: 12.7 | D18: 4.1 | E18: 11.1 | F18: 12.4 | G18: 14.8 | H18: 4.2 | I18: 7.4 | J18: 8.1 | K18: 4.6 | L18: 3.9 | M18: 5.3 | N18: 0
A19: 1111143 | B19: 12 | C19: 13.4 | D19: 4.3 | E19: 11.7 | F19: 13.1 | G19: 15.8 | H19: 4.4 | I19: 7.8 | J19: 8.5 | K19: 4.9 | L19: 4.1 | M19: 0 | N19: 0
A20: 1111151 | B20: 12.8 | C20: 14.3 | D20: 4.6 | E20: 0 | F20: 14 | G20: 16.6 | H20: 4.7 | I20: 8.3 | J20: 9.1 | K20: 5.2 | L20: 4.4 | M20: 6 | N20: 0
A21: 1111152 | B21: 12.8 | C21: 14.3 | D21: 4.6 | E21: 0 | F21: 14 | G21: 16.6 | H21: 4.7 | I21: 8.3 | J21: 9.1 | K21: 5.2 | L21: 4.4 | M21: 6 | N21: 0
A22: 1111153 | B22: 13.6 | C22: 15.2 | D22: 4.9 | E22: 0 | F22: 14.9 | G22: 17.8 | H22: 5 | I22: 8.8 | J22: 9.6 | K22: 5.5 | L22: 4.7 | M22: 0 | N22: 0
A23: 1111211 | B23: 11.9 | C23: 13.3 | D23: 4.3 | E23: 6.9 | F23: 13 | G23: 15.6 | H23: 4.4 | I23: 7.7 | J23: 8.4 | K23: 4.8 | L23: 4.1 | M23: 5.6 | N23: 0
A24: 1111212 | B24: 11.9 | C24: 13.3 | D24: 4.3 | E24: 6.9 | F24: 13 | G24: 15.6 | H24: 4.4 | I24: 7.7 | J24: 8.4 | K24: 4.8 | L24: 4.1 | M24: 5.6 | N24: 0
A25: 1111213 | B25: 12.6 | C25: 14.1 | D25: 4.5 | E25: 7.3 | F25: 13.8 | G25: 16.5 | H25: 4.7 | I25: 8.2 | J25: 8.9 | K25: 5.1 | L25: 4.3 | M25: 0 | N25: 0
A26: 1111221 | B26: 11.9 | C26: 13.3 | D26: 4.3 | E26: 6.9 | F26: 13 | G26: 15.6 | H26: 4.4 | I26: 7.7 | J26: 8.4 | K26: 4.8 | L26: 4.1 | M26: 5.6 | N26: 0
A27: 1111222 | B27: 11.9 | C27: 13.3 | D27: 4.3 | E27: 6.9 | F27: 13 | G27: 15.6 | H27: 4.4 | I27: 7.7 | J27: 8.4 | K27: 4.8 | L27: 4.1 | M27: 5.6 | N27: 0
A28: 1111223 | B28: 12.6 | C28: 14.1 | D28: 4.5 | E28: 7.3 | F28: 13.8 | G28: 16.5 | H28: 4.7 | I28: 8.2 | J28: 8.9 | K28: 5.1 | L28: 4.3 | M28: 0 | N28: 0
A29: 1111231 | B29: 10.5 | C29: 11.8 | D29: 3.8 | E29: 17.4 | F29: 11.6 | G29: 13.8 | H29: 3.9 | I29: 6.9 | J29: 7.5 | K29: 4.3 | L29: 3.6 | M29: 4.9 | N29: 0
A30: 1111232 | B30: 10.5 | C30: 11.8 | D30: 3.8 | E30: 17.4 | F30: 11.6 | G30: 13.8 | H30: 3.9 | I30: 6.9 | J30: 7.5 | K30: 4.3 | L30: 3.6 | M30: 4.9 | N30: 0
A31: 1111233 | B31: 11.1 | C31: 12.4 | D31: 4 | E31: 18.3 | F31: 12.2 | G31: 14.5 | H31: 4.1 | I31: 7.2 | J31: 7.9 | K31: 4.5 | L31: 3.8 | M31: 0 | N31: 0
A32: 1111241 | B32: 11.4 | C32: 12.7 | D32: 4.1 | E32: 11.1 | F32: 12.4 | G32: 14.8 | H32: 4.2 | I32: 7.4 | J32: 8.1 | K32: 4.6 | L32: 3.9 | M32: 5.3 | N32: 0
A33: 1111242 | B33: 11.4 | C33: 12.7 | D33: 4.1 | E33: 11.1 | F33: 12.4 | G33: 14.8 | H33: 4.2 | I33: 7.4 | J33: 8.1 | K33: 4.6 | L33: 3.9 | M33: 5.3 | N33: 0
A34: 1111243 | B34: 12 | C34: 13.4 | D34: 4.3 | E34: 11.7 | F34: 13.1 | G34: 15.8 | H34: 4.4 | I34: 7.8 | J34: 8.5 | K34: 4.9 | L34: 4.1 | M34: 0 | N34: 0
A35: 1111251 | B35: 12.8 | C35: 14.3 | D35: 4.6 | E35: 0 | F35: 14 | G35: 16.6 | H35: 4.7 | I35: 8.3 | J35: 9.1 | K35: 5.2 | L35: 4.4 | M35: 6 | N35: 0
A36: 1111252 | B36: 12.8 | C36: 14.3 | D36: 4.6 | E36: 0 | F36: 14 | G36: 16.6 | H36: 4.7 | I36: 8.3 | J36: 9.1 | K36: 5.2 | L36: 4.4 | M36: 6 | N36: 0
A37: 1111253 | B37: 13.6 | C37: 15.2 | D37: 4.9 | E37: 0 | F37: 14.9 | G37: 17.8 | H37: 5 | I37: 8.8 | J37: 9.6 | K37: 5.5 | L37: 4.7 | M37: 0 | N37: 0
A38: 1111311 | B38: 11.3 | C38: 12.6 | D38: 9.4 | E38: 6.5 | F38: 12.3 | G38: 14.6 | H38: 4.2 | I38: 7.3 | J38: 8 | K38: 4.6 | L38: 3.9 | M38: 5.3 | N38: 0
A39: 1111312 | B39: 11.3 | C39: 12.6 | D39: 9.4 | E39: 6.5 | F39: 12.3 | G39: 14.6 | H39: 4.2 | I39: 7.3 | J39: 8 | K39: 4.6 | L39: 3.9 | M39: 5.3 | N39: 0
A40: 1111313 | B40: 11.9 | C40: 13.3 | D40: 9.9 | E40: 6.9 | F40: 13 | G40: 15.6 | H40: 4.4 | I40: 7.7 | J40: 8.4 | K40: 4.8 | L40: 4.1 | M40: 0 | N40: 0
A41: 1111321 | B41: 11.3 | C41: 12.6 | D41: 9.4 | E41: 6.5 | F41: 12.3 | G41: 14.6 | H41: 4.2 | I41: 7.3 | J41: 8 | K41: 4.6 | L41: 3.9 | M41: 5.3 | N41: 0
A42: 1111322 | B42: 11.3 | C42: 12.6 | D42: 9.4 | E42: 6.5 | F42: 12.3 | G42: 14.6 | H42: 4.2 | I42: 7.3 | J42: 8 | K42: 4.6 | L42: 3.9 | M42: 5.3 | N42: 0
A43: 1111323 | B43: 11.9 | C43: 13.3 | D43: 9.9 | E43: 6.9 | F43: 13 | G43: 15.6 | H43: 4.4 | I43: 7.7 | J43: 8.4 | K43: 4.8 | L43: 4.1 | M43: 0 | N43: 0
A44: 1111331 | B44: 10 | C44: 11.2 | D44: 8.4 | E44: 16.7 | F44: 11 | G44: 13.1 | H44: 3.7 | I44: 6.5 | J44: 7.1 | K44: 4.1 | L44: 3.5 | M44: 4.7 | N44: 0
A45: 1111332 | B45: 10 | C45: 11.2 | D45: 8.4 | E45: 16.7 | F45: 11 | G45: 13.1 | H45: 3.7 | I45: 6.5 | J45: 7.1 | K45: 4.1 | L45: 3.5 | M45: 4.7 | N45: 0
A46: 1111333 | B46: 10.5 | C46: 11.8 | D46: 8.8 | E46: 17.4 | F46: 11.6 | G46: 13.8 | H46: 3.9 | I46: 6.8 | J46: 7.5 | K46: 4.3 | L46: 3.6 | M46: 0 | N46: 0
A47: 1111341 | B47: 10.8 | C47: 12.1 | D47: 9 | E47: 10.5 | F47: 11.8 | G47: 14.1 | H47: 4 | I47: 7 | J47: 7.6 | K47: 4.4 | L47: 3.7 | M47: 5 | N47: 0
A48: 1111342 | B48: 10.8 | C48: 12.1 | D48: 9 | E48: 10.5 | F48: 11.8 | G48: 14.1 | H48: 4 | I48: 7 | J48: 7.6 | K48: 4.4 | L48: 3.7 | M48: 5 | N48: 0
A49: 1111343 | B49: 11.3 | C49: 12.7 | D49: 9.4 | E49: 11.1 | F49: 12.4 | G49: 14.9 | H49: 4.2 | I49: 7.4 | J49: 8.1 | K49: 4.6 | L49: 3.9 | M49: 0 | N49: 0
A50: 1111351 | B50: 12 | C50: 13.5 | D50: 10 | E50: 0 | F50: 13.2 | G50: 15.9 | H50: 4.4 | I50: 7.8 | J50: 8.5 | K50: 4.9 | L50: 4.2 | M50: 5.6 | N50: 0
A51: 1111352 | B51: 12 | C51: 13.5 | D51: 10 | E51: 0 | F51: 13.2 | G51: 15.9 | H51: 4.4 | I51: 7.8 | J51: 8.5 | K51: 4.9 | L51: 4.2 | M51: 5.6 | N51: 0
A52: 1111353 | B52: 12.8 | C52: 14.3 | D52: 10.6 | E52: 0 | F52: 14 | G52: 16.6 | H52: 4.7 | I52: 8.3 | J52: 9.1 | K52: 5.2 | L52: 4.4 | M52: 0 | N52: 0
A53: 1111511 | B53: 11.5 | C53: 12.8 | D53: 7.7 | E53: 6.6 | F53: 12.6 | G53: 14.9 | H53: 4.2 | I53: 7.5 | J53: 8.1 | K53: 4.7 | L53: 4 | M53: 5.4 | N53: 0
A54: 1111512 | B54: 11.5 | C54: 12.8 | D54: 7.7 | E54: 6.6 | F54: 12.6 | G54: 14.9 | H54: 4.2 | I54: 7.5 | J54: 8.1 | K54: 4.7 | L54: 4 | M54: 5.4 | N54: 0
A55: 1111513 | B55: 12.1 | C55: 13.6 | D55: 8.1 | E55: 7 | F55: 13.3 | G55: 15.8 | H55: 4.5 | I55: 7.9 | J55: 8.6 | K55: 4.9 | L55: 4.2 | M55: 0 | N55: 0
A56: 1111521 | B56: 11.5 | C56: 12.8 | D56: 7.7 | E56: 6.6 | F56: 12.6 | G56: 14.9 | H56: 4.2 | I56: 7.5 | J56: 8.1 | K56: 4.7 | L56: 4 | M56: 5.4 | N56: 0
A57: 1111522 | B57: 11.5 | C57: 12.8 | D57: 7.7 | E57: 6.6 | F57: 12.6 | G57: 14.9 | H57: 4.2 | I57: 7.5 | J57: 8.1 | K57: 4.7 | L57: 4 | M57: 5.4 | N57: 0
A58: 1111523 | B58: 12.1 | C58: 13.6 | D58: 8.1 | E58: 7 | F58: 13.3 | G58: 15.8 | H58: 4.5 | I58: 7.9 | J58: 8.6 | K58: 4.9 | L58: 4.2 | M58: 0 | N58: 0
A59: 1111531 | B59: 10.2 | C59: 11.4 | D59: 6.8 | E59: 16.9 | F59: 11.2 | G59: 13.4 | H59: 3.8 | I59: 6.6 | J59: 7.2 | K59: 4.2 | L59: 3.5 | M59: 4.8 | N59: 0
A60: 1111532 | B60: 10.2 | C60: 11.4 | D60: 6.8 | E60: 16.9 | F60: 11.2 | G60: 13.4 | H60: 3.8 | I60: 6.6 | J60: 7.2 | K60: 4.2 | L60: 3.5 | M60: 4.8 | N60: 0
A61: 1111533 | B61: 10.7 | C61: 12 | D61: 7.2 | E61: 17.6 | F61: 11.8 | G61: 14 | H61: 4 | I61: 7 | J61: 7.6 | K61: 4.4 | L61: 3.7 | M61: 0 | N61: 0
A62: 1111541 | B62: 11 | C62: 12.3 | D62: 7.3 | E62: 10.7 | F62: 12 | G62: 14.3 | H62: 4.1 | I62: 7.1 | J62: 7.8 | K62: 4.5 | L62: 3.8 | M62: 5.1 | N62: 0
A63: 1111542 | B63: 11 | C63: 12.3 | D63: 7.3 | E63: 10.7 | F63: 12 | G63: 14.3 | H63: 4.1 | I63: 7.1 | J63: 7.8 | K63: 4.5 | L63: 3.8 | M63: 5.1 | N63: 0
A64: 1111543 | B64: 11.6 | C64: 12.9 | D64: 7.7 | E64: 11.3 | F64: 12.7 | G64: 15.1 | H64: 4.3 | I64: 7.5 | J64: 8.2 | K64: 4.7 | L64: 4 | M64: 0 | N64: 0
A65: 1111551 | B65: 12.3 | C65: 13.7 | D65: 8.2 | E65: 0 | F65: 13.5 | G65: 16.2 | H65: 4.5 | I65: 8 | J65: 8.7 | K65: 5 | L65: 4.2 | M65: 5.7 | N65: 0
A66: 1111552 | B66: 12.3 | C66: 13.7 | D66: 8.2 | E66: 0 | F66: 13.5 | G66: 16.2 | H66: 4.5 | I66: 8 | J66: 8.7 | K66: 5 | L66: 4.2 | M66: 5.7 | N66: 0
A67: 1111553 | B67: 13 | C67: 14.6 | D67: 8.7 | E67: 0 | F67: 14.3 | G67: 17.1 | H67: 4.8 | I67: 8.5 | J67: 9.2 | K67: 5.3 | L67: 4.5 | M67: 0 | N67: 0
A68: 1111611 | B68: 10.7 | C68: 11.9 | D68: 14.2 | E68: 6.2 | F68: 11.7 | G68: 13.9 | H68: 3.9 | I68: 6.9 | J68: 7.6 | K68: 4.3 | L68: 3.7 | M68: 5 | N68: 0
A69: 1111612 | B69: 10.7 | C69: 11.9 | D69: 14.2 | E69: 6.2 | F69: 11.7 | G69: 13.9 | H69: 3.9 | I69: 6.9 | J69: 7.6 | K69: 4.3 | L69: 3.7 | M69: 5 | N69: 0
A70: 1111613 | B70: 11.2 | C70: 12.5 | D70: 14.9 | E70: 6.5 | F70: 12.3 | G70: 14.7 | H70: 4.1 | I70: 7.3 | J70: 8 | K70: 4.6 | L70: 3.9 | M70: 0 | N70: 0
A71: 1111621 | B71: 10.7 | C71: 11.9 | D71: 14.2 | E71: 6.2 | F71: 11.7 | G71: 13.9 | H71: 3.9 | I71: 6.9 | J71: 7.6 | K71: 4.3 | L71: 3.7 | M71: 5 | N71: 0
A72: 1111622 | B72: 10.7 | C72: 11.9 | D72: 14.2 | E72: 6.2 | F72: 11.7 | G72: 13.9 | H72: 3.9 | I72: 6.9 | J72: 7.6 | K72: 4.3 | L72: 3.7 | M72: 5 | N72: 0
A73: 1111623 | B73: 11.2 | C73: 12.5 | D73: 14.9 | E73: 6.5 | F73: 12.3 | G73: 14.7 | H73: 4.1 | I73: 7.3 | J73: 8 | K73: 4.6 | L73: 3.9 | M73: 0 | N73: 0
A74: 1111631 | B74: 9.6 | C74: 10.7 | D74: 12.8 | E74: 15.7 | F74: 10.5 | G74: 12.5 | H74: 3.5 | I74: 6.2 | J74: 6.8 | K74: 3.9 | L74: 3.3 | M74: 4.5 | N74: 0
A75: 1111632 | B75: 9.6 | C75: 10.7 | D75: 12.8 | E75: 15.7 | F75: 10.5 | G75: 12.5 | H75: 3.5 | I75: 6.2 | J75: 6.8 | K75: 3.9 | L75: 3.3 | M75: 4.5 | N75: 0
A76: 1111633 | B76: 10 | C76: 11.2 | D76: 13.4 | E76: 16.4 | F76: 11 | G76: 13.1 | H76: 3.7 | I76: 6.5 | J76: 7.1 | K76: 4.1 | L76: 3.5 | M76: 0 | N76: 0
A77: 1111641 | B77: 10.2 | C77: 11.4 | D77: 13.6 | E77: 10 | F77: 11.2 | G77: 13.4 | H77: 3.8 | I77: 6.6 | J77: 7.3 | K77: 4.2 | L77: 3.5 | M77: 4.8 | N77: 0
A78: 1111642 | B78: 10.2 | C78: 11.4 | D78: 13.6 | E78: 10 | F78: 11.2 | G78: 13.4 | H78: 3.8 | I78: 6.6 | J78: 7.3 | K78: 4.2 | L78: 3.5 | M78: 4.8 | N78: 0
A79: 1111643 | B79: 10.7 | C79: 12 | D79: 14.3 | E79: 10.5 | F79: 11.8 | G79: 14 | H79: 4 | I79: 7 | J79: 7.6 | K79: 4.4 | L79: 3.7 | M79: 0 | N79: 0
A80: 1111651 | B80: 11.4 | C80: 12.7 | D80: 15.1 | E80: 0 | F80: 12.4 | G80: 14.9 | H80: 4.2 | I80: 7.4 | J80: 8.1 | K80: 4.6 | L80: 3.9 | M80: 5.3 | N80: 0
A81: 1111652 | B81: 11.4 | C81: 12.7 | D81: 15.1 | E81: 0 | F81: 12.4 | G81: 14.9 | H81: 4.2 | I81: 7.4 | J81: 8.1 | K81: 4.6 | L81: 3.9 | M81: 5.3 | N81: 0
A82: 1111653 | B82: 12 | C82: 13.4 | D82: 16.1 | E82: 0 | F82: 13.1 | G82: 15.7 | H82: 4.4 | I82: 7.8 | J82: 8.5 | K82: 4.9 | L82: 4.1 | M82: 0 | N82: 0
A83: 1112111 | B83: 11.9 | C83: 13.3 | D83: 4.3 | E83: 6.9 | F83: 13 | G83: 15.6 | H83: 4.4 | I83: 7.7 | J83: 8.4 | K83: 4.8 | L83: 4.1 | M83: 5.6 | N83: 0
A84: 1112112 | B84: 11.9 | C84: 13.3 | D84: 4.3 | E84: 6.9 | F84: 13 | G84: 15.6 | H84: 4.4 | I84: 7.7 | J84: 8.4 | K84: 4.8 | L84: 4.1 | M84: 5.6 | N84: 0
A85: 1112113 | B85: 12.6 | C85: 14.1 | D85: 4.5 | E85: 7.3 | F85: 13.8 | G85: 16.5 | H85: 4.7 | I85: 8.2 | J85: 8.9 | K85: 5.1 | L85: 4.3 | M85: 0 | N85: 0
A86: 1112121 | B86: 11.9 | C86: 13.3 | D86: 4.3 | E86: 6.9 | F86: 13 | G86: 15.6 | H86: 4.4 | I86: 7.7 | J86: 8.4 | K86: 4.8 | L86: 4.1 | M86: 5.6 | N86: 0
A87: 1112122 | B87: 11.9 | C87: 13.3 | D87: 4.3 | E87: 6.9 | F87: 13 | G87: 15.6 | H87: 4.4 | I87: 7.7 | J87: 8.4 | K87: 4.8 | L87: 4.1 | M87: 5.6 | N87: 0
A88: 1112123 | B88: 12.6 | C88: 14.1 | D88: 4.5 | E88: 7.3 | F88: 13.8 | G88: 16.5 | H88: 4.7 | I88: 8.2 | J88: 8.9 | K88: 5.1 | L88: 4.3 | M88: 0 | N88: 0
A89: 1112131 | B89: 10.5 | C89: 11.8 | D89: 3.8 | E89: 17.4 | F89: 11.6 | G89: 13.8 | H89: 3.9 | I89: 6.9 | J89: 7.5 | K89: 4.3 | L89: 3.6 | M89: 4.9 | N89: 0
A90: 1112132 | B90: 10.5 | C90: 11.8 | D90: 3.8 | E90: 17.4 | F90: 11.6 | G90: 13.8 | H90: 3.9 | I90: 6.9 | J90: 7.5 | K90: 4.3 | L90: 3.6 | M90: 4.9 | N90: 0
A91: 1112133 | B91: 11.1 | C91: 12.4 | D91: 4 | E91: 18.3 | F91: 12.2 | G91: 14.5 | H91: 4.1 | I91: 7.2 | J91: 7.9 | K91: 4.5 | L91: 3.8 | M91: 0 | N91: 0
A92: 1112141 | B92: 11.4 | C92: 12.7 | D92: 4.1 | E92: 11.1 | F92: 12.4 | G92: 14.8 | H92: 4.2 | I92: 7.4 | J92: 8.1 | K92: 4.6 | L92: 3.9 | M92: 5.3 | N92: 0
A93: 1112142 | B93: 11.4 | C93: 12.7 | D93: 4.1 | E93: 11.1 | F93: 12.4 | G93: 14.8 | H93: 4.2 | I93: 7.4 | J93: 8.1 | K93: 4.6 | L93: 3.9 | M93: 5.3 | N93: 0
A94: 1112143 | B94: 12 | C94: 13.4 | D94: 4.3 | E94: 11.7 | F94: 13.1 | G94: 15.8 | H94: 4.4 | I94: 7.8 | J94: 8.5 | K94: 4.9 | L94: 4.1 | M94: 0 | N94: 0
A95: 1112151 | B95: 12.8 | C95: 14.3 | D95: 4.6 | E95: 0 | F95: 14 | G95: 16.6 | H95: 4.7 | I95: 8.3 | J95: 9.1 | K95: 5.2 | L95: 4.4 | M95: 6 | N95: 0
A96: 1112152 | B96: 12.8 | C96: 14.3 | D96: 4.6 | E96: 0 | F96: 14 | G96: 16.6 | H96: 4.7 | I96: 8.3 | J96: 9.1 | K96: 5.2 | L96: 4.4 | M96: 6 | N96: 0
A97: 1112153 | B97: 13.6 | C97: 15.2 | D97: 4.9 | E97: 0 | F97: 14.9 | G97: 17.8 | H97: 5 | I97: 8.8 | J97: 9.6 | K97: 5.5 | L97: 4.7 | M97: 0 | N97: 0
A98: 1112211 | B98: 11.9 | C98: 13.3 | D98: 4.3 | E98: 6.9 | F98: 13 | G98: 15.6 | H98: 4.4 | I98: 7.7 | J98: 8.4 | K98: 4.8 | L98: 4.1 | M98: 5.6 | N98: 0
A99: 1112212 | B99: 11.9 | C99: 13.3 | D99: 4.3 | E99: 6.9 | F99: 13 | G99: 15.6 | H99: 4.4 | I99: 7.7 | J99: 8.4 | K99: 4.8 | L99: 4.1 | M99: 5.6 | N99: 0
A100: 1112213 | B100: 12.6 | C100: 14.1 | D100: 4.5 | E100: 7.3 | F100: 13.8 | G100: 16.5 | H100: 4.7 | I100: 8.2 | J100: 8.9 | K100: 5.1 | L100: 4.3 | M100: 0 | N100: 0
A101: 1112221 | B101: 11.9 | C101: 13.3 | D101: 4.3 | E101: 6.9 | F101: 13 | G101: 15.6 | H101: 4.4 | I101: 7.7 | J101: 8.4 | K101: 4.8 | L101: 4.1 | M101: 5.6 | N101: 0
A102: 1112222 | B102: 11.9 | C102: 13.3 | D102: 4.3 | E102: 6.9 | F102: 13 | G102: 15.6 | H102: 4.4 | I102: 7.7 | J102: 8.4 | K102: 4.8 | L102: 4.1 | M102: 5.6 | N102: 0
A103: 1112223 | B103: 12.6 | C103: 14.1 | D103: 4.5 | E103: 7.3 | F103: 13.8 | G103: 16.5 | H103: 4.7 | I103: 8.2 | J103: 8.9 | K103: 5.1 | L103: 4.3 | M103: 0 | N103: 0
A104: 1112231 | B104: 10.5 | C104: 11.8 | D104: 3.8 | E104: 17.4 | F104: 11.6 | G104: 13.8 | H104: 3.9 | I104: 6.9 | J104: 7.5 | K104: 4.3 | L104: 3.6 | M104: 4.9 | N104: 0
A105: 1112232 | B105: 10.5 | C105: 11.8 | D105: 3.8 | E105: 17.4 | F105: 11.6 | G105: 13.8 | H105: 3.9 | I105: 6.9 | J105: 7.5 | K105: 4.3 | L105: 3.6 | M105: 4.9 | N105: 0
A106: 1112233 | B106: 11.1 | C106: 12.4 | D106: 4 | E106: 18.3 | F106: 12.2 | G106: 14.5 | H106: 4.1 | I106: 7.2 | J106: 7.9 | K106: 4.5 | L106: 3.8 | M106: 0 | N106: 0
A107: 1112241 | B107: 11.4 | C107: 12.7 | D107: 4.1 | E107: 11.1 | F107: 12.4 | G107: 14.8 | H107: 4.2 | I107: 7.4 | J107: 8.1 | K107: 4.6 | L107: 3.9 | M107: 5.3 | N107: 0
A108: 1112242 | B108: 11.4 | C108: 12.7 | D108: 4.1 | E108: 11.1 | F108: 12.4 | G108: 14.8 | H108: 4.2 | I108: 7.4 | J108: 8.1 | K108: 4.6 | L108: 3.9 | M108: 5.3 | N108: 0
A109: 1112243 | B109: 12 | C109: 13.4 | D109: 4.3 | E109: 11.7 | F109: 13.1 | G109: 15.8 | H109: 4.4 | I109: 7.8 | J109: 8.5 | K109: 4.9 | L109: 4.1 | M109: 0 | N109: 0
A110: 1112251 | B110: 12.8 | C110: 14.3 | D110: 4.6 | E110: 0 | F110: 14 | G110: 16.6 | H110: 4.7 | I110: 8.3 | J110: 9.1 | K110: 5.2 | L110: 4.4 | M110: 6 | N110: 0
A111: 1112252 | B111: 12.8 | C111: 14.3 | D111: 4.6 | E111: 0 | F111: 14 | G111: 16.6 | H111: 4.7 | I111: 8.3 | J111: 9.1 | K111: 5.2 | L111: 4.4 | M111: 6 | N111: 0
A112: 1112253 | B112: 13.6 | C112: 15.2 | D112: 4.9 | E112: 0 | F112: 14.9 | G112: 17.8 | H112: 5 | I112: 8.8 | J112: 9.6 | K112: 5.5 | L112: 4.7 | M112: 0 | N112: 0
A113: 1112311 | B113: 11.3 | C113: 12.6 | D113: 9.4 | E113: 6.5 | F113: 12.3 | G113: 14.6 | H113: 4.2 | I113: 7.3 | J113: 8 | K113: 4.6 | L113: 3.9 | M113: 5.3 | N113: 0
A114: 1112312 | B114: 11.3 | C114: 12.6 | D114: 9.4 | E114: 6.5 | F114: 12.3 | G114: 14.6 | H114: 4.2 | I114: 7.3 | J114: 8 | K114: 4.6 | L114: 3.9 | M114: 5.3 | N114: 0
A115: 1112313 | B115: 11.9 | C115: 13.3 | D115: 9.9 | E115: 6.9 | F115: 13 | G115: 15.6 | H115: 4.4 | I115: 7.7 | J115: 8.4 | K115: 4.8 | L115: 4.1 | M115: 0 | N115: 0
A116: 1112321 | B116: 11.3 | C116: 12.6 | D116: 9.4 | E116: 6.5 | F116: 12.3 | G116: 14.6 | H116: 4.2 | I116: 7.3 | J116: 8 | K116: 4.6 | L116: 3.9 | M116: 5.3 | N116: 0
A117: 1112322 | B117: 11.3 | C117: 12.6 | D117: 9.4 | E117: 6.5 | F117: 12.3 | G117: 14.6 | H117: 4.2 | I117: 7.3 | J117: 8 | K117: 4.6 | L117: 3.9 | M117: 5.3 | N117: 0
A118: 1112323 | B118: 11.9 | C118: 13.3 | D118: 9.9 | E118: 6.9 | F118: 13 | G118: 15.6 | H118: 4.4 | I118: 7.7 | J118: 8.4 | K118: 4.8 | L118: 4.1 | M118: 0 | N118: 0
A119: 1112331 | B119: 10 | C119: 11.2 | D119: 8.4 | E119: 16.7 | F119: 11 | G119: 13.1 | H119: 3.7 | I119: 6.5 | J119: 7.1 | K119: 4.1 | L119: 3.5 | M119: 4.7 | N119: 0
A120: 1112332 | B120: 10 | C120: 11.2 | D120: 8.4 | E120: 16.7 | F120: 11 | G120: 13.1 | H120: 3.7 | I120: 6.5 | J120: 7.1 | K120: 4.1 | L120: 3.5 | M120: 4.7 | N120: 0
A121: 1112333 | B121: 10.5 | C121: 11.8 | D121: 8.8 | E121: 17.4 | F121: 11.6 | G121: 13.8 | H121: 3.9 | I121: 6.8 | J121: 7.5 | K121: 4.3 | L121: 3.6 | M121: 0 | N121: 0
A122: 1112341 | B122: 10.8 | C122: 12.1 | D122: 9 | E122: 10.5 | F122: 11.8 | G122: 14.1 | H122: 4 | I122: 7 | J122: 7.6 | K122: 4.4 | L122: 3.7 | M122: 5 | N122: 0
A123: 1112342 | B123: 10.8 | C123: 12.1 | D123: 9 | E123: 10.5 | F123: 11.8 | G123: 14.1 | H123: 4 | I123: 7 | J123: 7.6 | K123: 4.4 | L123: 3.7 | M123: 5 | N123: 0
A124: 1112343 | B124: 11.3 | C124: 12.7 | D124: 9.4 | E124: 11.1 | F124: 12.4 | G124: 14.9 | H124: 4.2 | I124: 7.4 | J124: 8.1 | K124: 4.6 | L124: 3.9 | M124: 0 | N124: 0
A125: 1112351 | B125: 12 | C125: 13.5 | D125: 10 | E125: 0 | F125: 13.2 | G125: 15.9 | H125: 4.4 | I125: 7.8 | J125: 8.5 | K125: 4.9 | L125: 4.2 | M125: 5.6 | N125: 0
A126: 1112352 | B126: 12 | C126: 13.5 | D126: 10 | E126: 0 | F126: 13.2 | G126: 15.9 | H126: 4.4 | I126: 7.8 | J126: 8.5 | K126: 4.9 | L126: 4.2 | M126: 5.6 | N126: 0
A127: 1112353 | B127: 12.8 | C127: 14.3 | D127: 10.6 | E127: 0 | F127: 14 | G127: 16.6 | H127: 4.7 | I127: 8.3 | J127: 9.1 | K127: 5.2 | L127: 4.4 | M127: 0 | N127: 0
A128: 1112511 | B128: 11.5 | C128: 12.8 | D128: 7.7 | E128: 6.6 | F128: 12.6 | G128: 14.9 | H128: 4.2 | I128: 7.5 | J128: 8.1 | K128: 4.7 | L128: 4 | M128: 5.4 | N128: 0
A129: 1112512 | B129: 11.5 | C129: 12.8 | D129: 7.7 | E129: 6.6 | F129: 12.6 | G129: 14.9 | H129: 4.2 | I129: 7.5 | J129: 8.1 | K129: 4.7 | L129: 4 | M129: 5.4 | N129: 0
A130: 1112513 | B130: 12.1 | C130: 13.6 | D130: 8.1 | E130: 7 | F130: 13.3 | G130: 15.8 | H130: 4.5 | I130: 7.9 | J130: 8.6 | K130: 4.9 | L130: 4.2 | M130: 0 | N130: 0
A131: 1112521 | B131: 11.5 | C131: 12.8 | D131: 7.7 | E131: 6.6 | F131: 12.6 | G131: 14.9 | H131: 4.2 | I131: 7.5 | J131: 8.1 | K131: 4.7 | L131: 4 | M131: 5.4 | N131: 0
A132: 1112522 | B132: 11.5 | C132: 12.8 | D132: 7.7 | E132: 6.6 | F132: 12.6 | G132: 14.9 | H132: 4.2 | I132: 7.5 | J132: 8.1 | K132: 4.7 | L132: 4 | M132: 5.4 | N132: 0
A133: 1112523 | B133: 12.1 | C133: 13.6 | D133: 8.1 | E133: 7 | F133: 13.3 | G133: 15.8 | H133: 4.5 | I133: 7.9 | J133: 8.6 | K133: 4.9 | L133: 4.2 | M133: 0 | N133: 0
A134: 1112531 | B134: 10.2 | C134: 11.4 | D134: 6.8 | E134: 16.9 | F134: 11.2 | G134: 13.4 | H134: 3.8 | I134: 6.6 | J134: 7.2 | K134: 4.2 | L134: 3.5 | M134: 4.8 | N134: 0
A135: 1112532 | B135: 10.2 | C135: 11.4 | D135: 6.8 | E135: 16.9 | F135: 11.2 | G135: 13.4 | H135: 3.8 | I135: 6.6 | J135: 7.2 | K135: 4.2 | L135: 3.5 | M135: 4.8 | N135: 0
A136: 1112533 | B136: 10.7 | C136: 12 | D136: 7.2 | E136: 17.6 | F136: 11.8 | G136: 14 | H136: 4 | I136: 7 | J136: 7.6 | K136: 4.4 | L136: 3.7 | M136: 0 | N136: 0
A137: 1112541 | B137: 11 | C137: 12.3 | D137: 7.3 | E137: 10.7 | F137: 12 | G137: 14.3 | H137: 4.1 | I137: 7.1 | J137: 7.8 | K137: 4.5 | L137: 3.8 | M137: 5.1 | N137: 0
A138: 1112542 | B138: 11 | C138: 12.3 | D138: 7.3 | E138: 10.7 | F138: 12 | G138: 14.3 | H138: 4.1 | I138: 7.1 | J138: 7.8 | K138: 4.5 | L138: 3.8 | M138: 5.1 | N138: 0
A139: 1112543 | B139: 11.6 | C139: 12.9 | D139: 7.7 | E139: 11.3 | F139: 12.7 | G139: 15.1 | H139: 4.3 | I139: 7.5 | J139: 8.2 | K139: 4.7 | L139: 4 | M139: 0 | N139: 0
A140: 1112551 | B140: 12.3 | C140: 13.7 | D140: 8.2 | E140: 0 | F140: 13.5 | G140: 16.2 | H140: 4.5 | I140: 8 | J140: 8.7 | K140: 5 | L140: 4.2 | M140: 5.7 | N140: 0
A141: 1112552 | B141: 12.3 | C141: 13.7 | D141: 8.2 | E141: 0 | F141: 13.5 | G141: 16.2 | H141: 4.5 | I141: 8 | J141: 8.7 | K141: 5 | L141: 4.2 | M141: 5.7 | N141: 0
A142: 1112553 | B142: 13 | C142: 14.6 | D142: 8.7 | E142: 0 | F142: 14.3 | G142: 17.1 | H142: 4.8 | I142: 8.5 | J142: 9.2 | K142: 5.3 | L142: 4.5 | M142: 0 | N142: 0
A143: 1112611 | B143: 10.7 | C143: 11.9 | D143: 14.2 | E143: 6.2 | F143: 11.7 | G143: 13.9 | H143: 3.9 | I143: 6.9 | J143: 7.6 | K143: 4.3 | L143: 3.7 | M143: 5 | N143: 0
A144: 1112612 | B144: 10.7 | C144: 11.9 | D144: 14.2 | E144: 6.2 | F144: 11.7 | G144: 13.9 | H144: 3.9 | I144: 6.9 | J144: 7.6 | K144: 4.3 | L144: 3.7 | M144: 5 | N144: 0
A145: 1112613 | B145: 11.2 | C145: 12.5 | D145: 14.9 | E145: 6.5 | F145: 12.3 | G145: 14.7 | H145: 4.1 | I145: 7.3 | J145: 8 | K145: 4.6 | L145: 3.9 | M145: 0 | N145: 0
A146: 1112621 | B146: 10.7 | C146: 11.9 | D146: 14.2 | E146: 6.2 | F146: 11.7 | G146: 13.9 | H146: 3.9 | I146: 6.9 | J146: 7.6 | K146: 4.3 | L146: 3.7 | M146: 5 | N146: 0
A147: 1112622 | B147: 10.7 | C147: 11.9 | D147: 14.2 | E147: 6.2 | F147: 11.7 | G147: 13.9 | H147: 3.9 | I147: 6.9 | J147: 7.6 | K147: 4.3 | L147: 3.7 | M147: 5 | N147: 0
A148: 1112623 | B148: 11.2 | C148: 12.5 | D148: 14.9 | E148: 6.5 | F148: 12.3 | G148: 14.7 | H148: 4.1 | I148: 7.3 | J148: 8 | K148: 4.6 | L148: 3.9 | M148: 0 | N148: 0
A149: 1112631 | B149: 9.6 | C149: 10.7 | D149: 12.8 | E149: 15.7 | F149: 10.5 | G149: 12.5 | H149: 3.5 | I149: 6.2 | J149: 6.8 | K149: 3.9 | L149: 3.3 | M149: 4.5 | N149: 0
A150: 1112632 | B150: 9.6 | C150: 10.7 | D150: 12.8 | E150: 15.7 | F150: 10.5 | G150: 12.5 | H150: 3.5 | I150: 6.2 | J150: 6.8 | K150: 3.9 | L150: 3.3 | M150: 4.5 | N150: 0
A151: 1112633 | B151: 10 | C151: 11.2 | D151: 13.4 | E151: 16.4 | F151: 11 | G151: 13.1 | H151: 3.7 | I151: 6.5 | J151: 7.1 | K151: 4.1 | L151: 3.5 | M151: 0 | N151: 0
A152: 1112641 | B152: 10.2 | C152: 11.4 | D152: 13.6 | E152: 10 | F152: 11.2 | G152: 13.4 | H152: 3.8 | I152: 6.6 | J152: 7.3 | K152: 4.2 | L152: 3.5 | M152: 4.8 | N152: 0
A153: 1112642 | B153: 10.2 | C153: 11.4 | D153: 13.6 | E153: 10 | F153: 11.2 | G153: 13.4 | H153: 3.8 | I153: 6.6 | J153: 7.3 | K153: 4.2 | L153: 3.5 | M153: 4.8 | N153: 0
A154: 1112643 | B154: 10.7 | C154: 12 | D154: 14.3 | E154: 10.5 | F154: 11.8 | G154: 14 | H154: 4 | I154: 7 | J154: 7.6 | K154: 4.4 | L154: 3.7 | M154: 0 | N154: 0
A155: 1112651 | B155: 11.4 | C155: 12.7 | D155: 15.1 | E155: 0 | F155: 12.4 | G155: 14.9 | H155: 4.2 | I155: 7.4 | J155: 8.1 | K155: 4.6 | L155: 3.9 | M155: 5.3 | N155: 0
A156: 1112652 | B156: 11.4 | C156: 12.7 | D156: 15.1 | E156: 0 | F156: 12.4 | G156: 14.9 | H156: 4.2 | I156: 7.4 | J156: 8.1 | K156: 4.6 | L156: 3.9 | M156: 5.3 | N156: 0
A157: 1112653 | B157: 12 | C157: 13.4 | D157: 16.1 | E157: 0 | F157: 13.1 | G157: 15.7 | H157: 4.4 | I157: 7.8 | J157: 8.5 | K157: 4.9 | L157: 4.1 | M157: 0 | N157: 0
A158: 1113111 | B158: 11 | C158: 19.6 | D158: 4 | E158: 6.4 | F158: 12.1 | G158: 14.4 | H158: 4.1 | I158: 7.2 | J158: 7.8 | K158: 4.5 | L158: 3.8 | M158: 5.1 | N158: 0
A159: 1113112 | B159: 11 | C159: 19.6 | D159: 4 | E159: 6.4 | F159: 12.1 | G159: 14.4 | H159: 4.1 | I159: 7.2 | J159: 7.8 | K159: 4.5 | L159: 3.8 | M159: 5.1 | N159: 0
A160: 1113113 | B160: 11.6 | C160: 20.9 | D160: 4.2 | E160: 6.7 | F160: 12.7 | G160: 15.2 | H160: 4.3 | I160: 7.5 | J160: 8.2 | K160: 4.7 | L160: 4 | M160: 0 | N160: 0
A161: 1113121 | B161: 11 | C161: 19.6 | D161: 4 | E161: 6.4 | F161: 12.1 | G161: 14.4 | H161: 4.1 | I161: 7.2 | J161: 7.8 | K161: 4.5 | L161: 3.8 | M161: 5.1 | N161: 0
A162: 1113122 | B162: 11 | C162: 19.6 | D162: 4 | E162: 6.4 | F162: 12.1 | G162: 14.4 | H162: 4.1 | I162: 7.2 | J162: 7.8 | K162: 4.5 | L162: 3.8 | M162: 5.1 | N162: 0
A163: 1113123 | B163: 11.6 | C163: 20.9 | D163: 4.2 | E163: 6.7 | F163: 12.7 | G163: 15.2 | H163: 4.3 | I163: 7.5 | J163: 8.2 | K163: 4.7 | L163: 4 | M163: 0 | N163: 0
A164: 1113131 | B164: 9.8 | C164: 17.7 | D164: 3.5 | E164: 16.3 | F164: 10.8 | G164: 12.9 | H164: 3.6 | I164: 6.4 | J164: 7 | K164: 4 | L164: 3.4 | M164: 4.6 | N164: 0
A165: 1113132 | B165: 9.8 | C165: 17.7 | D165: 3.5 | E165: 16.3 | F165: 10.8 | G165: 12.9 | H165: 3.6 | I165: 6.4 | J165: 7 | K165: 4 | L165: 3.4 | M165: 4.6 | N165: 0
A166: 1113133 | B166: 10.3 | C166: 18.5 | D166: 3.7 | E166: 17.1 | F166: 11.3 | G166: 13.5 | H166: 3.8 | I166: 6.7 | J166: 7.3 | K166: 4.2 | L166: 3.6 | M166: 0 | N166: 0
A167: 1113141 | B167: 10.5 | C167: 18.9 | D167: 3.8 | E167: 10.3 | F167: 11.6 | G167: 13.8 | H167: 3.9 | I167: 6.9 | J167: 7.5 | K167: 4.3 | L167: 3.6 | M167: 4.9 | N167: 0
A168: 1113142 | B168: 10.5 | C168: 18.9 | D168: 3.8 | E168: 10.3 | F168: 11.6 | G168: 13.8 | H168: 3.9 | I168: 6.9 | J168: 7.5 | K168: 4.3 | L168: 3.6 | M168: 4.9 | N168: 0
A169: 1113143 | B169: 11.1 | C169: 19.9 | D169: 4 | E169: 10.8 | F169: 12.2 | G169: 14.5 | H169: 4.1 | I169: 7.2 | J169: 7.9 | K169: 4.5 | L169: 3.8 | M169: 0 | N169: 0
A170: 1113151 | B170: 11.8 | C170: 21.1 | D170: 4.2 | E170: 0 | F170: 12.9 | G170: 15.4 | H170: 4.3 | I170: 7.6 | J170: 8.3 | K170: 4.8 | L170: 4.1 | M170: 5.5 | N170: 0
A171: 1113152 | B171: 11.8 | C171: 21.1 | D171: 4.2 | E171: 0 | F171: 12.9 | G171: 15.4 | H171: 4.3 | I171: 7.6 | J171: 8.3 | K171: 4.8 | L171: 4.1 | M171: 5.5 | N171: 0
A172: 1113153 | B172: 12.4 | C172: 22.3 | D172: 4.5 | E172: 0 | F172: 13.6 | G172: 16.3 | H172: 4.6 | I172: 8.1 | J172: 8.8 | K172: 5.1 | L172: 4.3 | M172: 0 | N172: 0
A173: 1113211 | B173: 11 | C173: 19.6 | D173: 4 | E173: 6.4 | F173: 12.1 | G173: 14.4 | H173: 4.1 | I173: 7.2 | J173: 7.8 | K173: 4.5 | L173: 3.8 | M173: 5.1 | N173: 0
A174: 1113212 | B174: 11 | C174: 19.6 | D174: 4 | E174: 6.4 | F174: 12.1 | G174: 14.4 | H174: 4.1 | I174: 7.2 | J174: 7.8 | K174: 4.5 | L174: 3.8 | M174: 5.1 | N174: 0
A175: 1113213 | B175: 11.6 | C175: 20.9 | D175: 4.2 | E175: 6.7 | F175: 12.7 | G175: 15.2 | H175: 4.3 | I175: 7.5 | J175: 8.2 | K175: 4.7 | L175: 4 | M175: 0 | N175: 0
A176: 1113221 | B176: 11 | C176: 19.6 | D176: 4 | E176: 6.4 | F176: 12.1 | G176: 14.4 | H176: 4.1 | I176: 7.2 | J176: 7.8 | K176: 4.5 | L176: 3.8 | M176: 5.1 | N176: 0
A177: 1113222 | B177: 11 | C177: 19.6 | D177: 4 | E177: 6.4 | F177: 12.1 | G177: 14.4 | H177: 4.1 | I177: 7.2 | J177: 7.8 | K177: 4.5 | L177: 3.8 | M177: 5.1 | N177: 0
A178: 1113223 | B178: 11.6 | C178: 20.9 | D178: 4.2 | E178: 6.7 | F178: 12.7 | G178: 15.2 | H178: 4.3 | I178: 7.5 | J178: 8.2 | K178: 4.7 | L178: 4 | M178: 0 | N178: 0
A179: 1113231 | B179: 9.8 | C179: 17.7 | D179: 3.5 | E179: 16.3 | F179: 10.8 | G179: 12.9 | H179: 3.6 | I179: 6.4 | J179: 7 | K179: 4 | L179: 3.4 | M179: 4.6 | N179: 0
A180: 1113232 | B180: 9.8 | C180: 17.7 | D180: 3.5 | E180: 16.3 | F180: 10.8 | G180: 12.9 | H180: 3.6 | I180: 6.4 | J180: 7 | K180: 4 | L180: 3.4 | M180: 4.6 | N180: 0
A181: 1113233 | B181: 10.3 | C181: 18.5 | D181: 3.7 | E181: 17.1 | F181: 11.3 | G181: 13.5 | H181: 3.8 | I181: 6.7 | J181: 7.3 | K181: 4.2 | L181: 3.6 | M181: 0 | N181: 0
A182: 1113241 | B182: 10.5 | C182: 18.9 | D182: 3.8 | E182: 10.3 | F182: 11.6 | G182: 13.8 | H182: 3.9 | I182: 6.9 | J182: 7.5 | K182: 4.3 | L182: 3.6 | M182: 4.9 | N182: 0
A183: 1113242 | B183: 10.5 | C183: 18.9 | D183: 3.8 | E183: 10.3 | F183: 11.6 | G183: 13.8 | H183: 3.9 | I183: 6.9 | J183: 7.5 | K183: 4.3 | L183: 3.6 | M183: 4.9 | N183: 0
A184: 1113243 | B184: 11.1 | C184: 19.9 | D184: 4 | E184: 10.8 | F184: 12.2 | G184: 14.5 | H184: 4.1 | I184: 7.2 | J184: 7.9 | K184: 4.5 | L184: 3.8 | M184: 0 | N184: 0
A185: 1113251 | B185: 11.8 | C185: 21.1 | D185: 4.2 | E185: 0 | F185: 12.9 | G185: 15.4 | H185: 4.3 | I185: 7.6 | J185: 8.3 | K185: 4.8 | L185: 4.1 | M185: 5.5 | N185: 0
A186: 1113252 | B186: 11.8 | C186: 21.1 | D186: 4.2 | E186: 0 | F186: 12.9 | G186: 15.4 | H186: 4.3 | I186: 7.6 | J186: 8.3 | K186: 4.8 | L186: 4.1 | M186: 5.5 | N186: 0
A187: 1113253 | B187: 12.4 | C187: 22.3 | D187: 4.5 | E187: 0 | F187: 13.6 | G187: 16.3 | H187: 4.6 | I187: 8.1 | J187: 8.8 | K187: 5.1 | L187: 4.3 | M187: 0 | N187: 0
A188: 1113311 | B188: 10.5 | C188: 18.6 | D188: 8.7 | E188: 6.1 | F188: 11.5 | G188: 13.7 | H188: 3.9 | I188: 6.8 | J188: 7.4 | K188: 4.3 | L188: 3.6 | M188: 4.9 | N188: 0
A189: 1113312 | B189: 10.5 | C189: 18.6 | D189: 8.7 | E189: 6.1 | F189: 11.5 | G189: 13.7 | H189: 3.9 | I189: 6.8 | J189: 7.4 | K189: 4.3 | L189: 3.6 | M189: 4.9 | N189: 0
A190: 1113313 | B190: 11 | C190: 19.7 | D190: 9.1 | E190: 6.4 | F190: 12.1 | G190: 14.4 | H190: 4.1 | I190: 7.1 | J190: 7.8 | K190: 4.5 | L190: 3.8 | M190: 0 | N190: 0
A191: 1113321 | B191: 10.5 | C191: 18.6 | D191: 8.7 | E191: 6.1 | F191: 11.5 | G191: 13.7 | H191: 3.9 | I191: 6.8 | J191: 7.4 | K191: 4.3 | L191: 3.6 | M191: 4.9 | N191: 0
A192: 1113322 | B192: 10.5 | C192: 18.6 | D192: 8.7 | E192: 6.1 | F192: 11.5 | G192: 13.7 | H192: 3.9 | I192: 6.8 | J192: 7.4 | K192: 4.3 | L192: 3.6 | M192: 4.9 | N192: 0
A193: 1113323 | B193: 11 | C193: 19.7 | D193: 9.1 | E193: 6.4 | F193: 12.1 | G193: 14.4 | H193: 4.1 | I193: 7.1 | J193: 7.8 | K193: 4.5 | L193: 3.8 | M193: 0 | N193: 0
A194: 1113331 | B194: 9.4 | C194: 17 | D194: 7.8 | E194: 15.5 | F194: 10.3 | G194: 12.3 | H194: 3.5 | I194: 6.1 | J194: 6.7 | K194: 3.8 | L194: 3.2 | M194: 4.4 | N194: 0
A195: 1113332 | B195: 9.4 | C195: 17 | D195: 7.8 | E195: 15.5 | F195: 10.3 | G195: 12.3 | H195: 3.5 | I195: 6.1 | J195: 6.7 | K195: 3.8 | L195: 3.2 | M195: 4.4 | N195: 0
A196: 1113333 | B196: 9.8 | C196: 17.6 | D196: 8.2 | E196: 16.3 | F196: 10.8 | G196: 12.9 | H196: 3.6 | I196: 6.4 | J196: 7 | K196: 4 | L196: 3.4 | M196: 0 | N196: 0
A197: 1113341 | B197: 10 | C197: 18.1 | D197: 8.4 | E197: 9.8 | F197: 11 | G197: 13.1 | H197: 3.7 | I197: 6.5 | J197: 7.1 | K197: 4.1 | L197: 3.5 | M197: 4.7 | N197: 0
A198: 1113342 | B198: 10 | C198: 18.1 | D198: 8.4 | E198: 9.8 | F198: 11 | G198: 13.1 | H198: 3.7 | I198: 6.5 | J198: 7.1 | K198: 4.1 | L198: 3.5 | M198: 4.7 | N198: 0
A199: 1113343 | B199: 10.5 | C199: 18.8 | D199: 8.8 | E199: 10.3 | F199: 11.6 | G199: 13.8 | H199: 3.9 | I199: 6.9 | J199: 7.5 | K199: 4.3 | L199: 3.6 | M199: 0 | N199: 0
A200: 1113351 | B200: 11.1 | C200: 20.1 | D200: 9.3 | E200: 0 | F200: 12.2 | G200: 14.6 | H200: 4.1 | I200: 7.2 | J200: 7.9 | K200: 4.5 | L200: 3.8 | M200: 5.2 | N200: 0
A201: 1113352 | B201: 11.1 | C201: 20.1 | D201: 9.3 | E201: 0 | F201: 12.2 | G201: 14.6 | H201: 4.1 | I201: 7.2 | J201: 7.9 | K201: 4.5 | L201: 3.8 | M201: 5.2 | N201: 0
A202: 1113353 | B202: 11.7 | C202: 21.1 | D202: 9.8 | E202: 0 | F202: 12.9 | G202: 15.4 | H202: 4.3 | I202: 7.6 | J202: 8.3 | K202: 4.8 | L202: 4.1 | M202: 0 | N202: 0
... 4298 more rows

Sheet NonRes_Lookup (hidden)
A1: Non-Residential Element Percent
A2: SDE Application
A3: 2019-05-14
A6: Lookup | B6: Foundation | C6: Superstructure | D6: Roof Covering | E6: Plumbing | F6: Electrical | G6: Interiors | H6: HVAC
A7: Default | B7: 12 | C7: 24 | D7: 6 | E7: 10 | F7: 14 | G7: 18 | H7: 16
A8: 00211 | B8: 4 | C8: 33 | D8: 2 | E8: 3 | F8: 23 | G8: 23 | H8: 12
A9: 00212 | B9: 12 | C9: 24 | D9: 6 | E9: 10 | F9: 14 | G9: 18 | H9: 16
A10: 00213 | B10: 12 | C10: 24 | D10: 6 | E10: 10 | F10: 14 | G10: 18 | H10: 16
A11: 00221 | B11: 12 | C11: 24 | D11: 6 | E11: 10 | F11: 14 | G11: 18 | H11: 16
A12: 00222 | B12: 12 | C12: 24 | D12: 6 | E12: 10 | F12: 14 | G12: 18 | H12: 16
A13: 00223 | B13: 12 | C13: 24 | D13: 6 | E13: 10 | F13: 14 | G13: 18 | H13: 16
A14: 00231 | B14: 11.5 | C14: 23 | D14: 5.8 | E14: 13.5 | F14: 13.5 | G14: 17.3 | H14: 15.4
A15: 00232 | B15: 11.5 | C15: 23 | D15: 5.8 | E15: 13.5 | F15: 13.5 | G15: 17.3 | H15: 15.4
A16: 00233 | B16: 11.5 | C16: 23 | D16: 5.8 | E16: 13.5 | F16: 13.5 | G16: 17.3 | H16: 15.4
A17: 00311 | B17: 2 | C17: 36 | D17: 1 | E17: 2 | F17: 25 | G17: 19 | H17: 15
A18: 00312 | B18: 5 | C18: 33 | D18: 2 | E18: 8 | F18: 15 | G18: 20 | H18: 17
A19: 00313 | B19: 4.8 | C19: 31.4 | D19: 2 | E19: 7.6 | F19: 19 | G19: 19 | H19: 16.2
A20: 00321 | B20: 4.8 | C20: 31.4 | D20: 2 | E20: 7.6 | F20: 19 | G20: 19 | H20: 16.2
A21: 00322 | B21: 5 | C21: 33 | D21: 2 | E21: 8 | F21: 15 | G21: 20 | H21: 17
A22: 00323 | B22: 4.8 | C22: 31.4 | D22: 2 | E22: 7.6 | F22: 19 | G22: 19 | H22: 16.2
A23: 00331 | B23: 4.7 | C23: 30.7 | D23: 1.9 | E23: 9.4 | F23: 18.7 | G23: 18.7 | H23: 15.9
A24: 00332 | B24: 4.9 | C24: 32.3 | D24: 2 | E24: 9.8 | F24: 14.7 | G24: 19.6 | H24: 16.7
A25: 00333 | B25: 4.7 | C25: 30.7 | D25: 1.9 | E25: 9.4 | F25: 18.7 | G25: 18.7 | H25: 15.9
A26: 01111 | B26: 12 | C26: 24 | D26: 6 | E26: 10 | F26: 14 | G26: 18 | H26: 16
A27: 01112 | B27: 12 | C27: 24 | D27: 6 | E27: 10 | F27: 14 | G27: 18 | H27: 16
A28: 01113 | B28: 12 | C28: 24 | D28: 6 | E28: 10 | F28: 14 | G28: 18 | H28: 16
A29: 01121 | B29: 12 | C29: 24 | D29: 6 | E29: 10 | F29: 14 | G29: 18 | H29: 16
A30: 01122 | B30: 12 | C30: 24 | D30: 6 | E30: 10 | F30: 14 | G30: 18 | H30: 16
A31: 01123 | B31: 12 | C31: 24 | D31: 6 | E31: 10 | F31: 14 | G31: 18 | H31: 16
A32: 01131 | B32: 11.5 | C32: 23 | D32: 5.8 | E32: 13.5 | F32: 13.5 | G32: 17.3 | H32: 15.4
A33: 01132 | B33: 11.5 | C33: 23 | D33: 5.8 | E33: 13.5 | F33: 13.5 | G33: 17.3 | H33: 15.4
A34: 01133 | B34: 11.5 | C34: 23 | D34: 5.8 | E34: 13.5 | F34: 13.5 | G34: 17.3 | H34: 15.4
A35: 01211 | B35: 4 | C35: 33 | D35: 2 | E35: 3 | F35: 23 | G35: 23 | H35: 12
A36: 01212 | B36: 4 | C36: 33 | D36: 2 | E36: 3 | F36: 23 | G36: 23 | H36: 12
A37: 01213 | B37: 3.8 | C37: 31.4 | D37: 1.9 | E37: 2.9 | F37: 26.7 | G37: 21.9 | H37: 11.4
A38: 01221 | B38: 3.8 | C38: 31.4 | D38: 1.9 | E38: 2.9 | F38: 26.7 | G38: 21.9 | H38: 11.4
A39: 01222 | B39: 4 | C39: 33 | D39: 2 | E39: 3 | F39: 23 | G39: 23 | H39: 12
A40: 01223 | B40: 3.8 | C40: 31.4 | D40: 1.9 | E40: 2.9 | F40: 26.7 | G40: 21.9 | H40: 11.4
A41: 01231 | B41: 3.7 | C41: 30.8 | D41: 1.9 | E41: 4.7 | F41: 26.2 | G41: 21.5 | H41: 11.2
A42: 01232 | B42: 3.9 | C42: 32.2 | D42: 2 | E42: 4.9 | F42: 22.6 | G42: 22.6 | H42: 11.8
A43: 01233 | B43: 3.7 | C43: 30.8 | D43: 1.9 | E43: 4.7 | F43: 26.2 | G43: 21.5 | H43: 11.2
A44: 01311 | B44: 2 | C44: 36 | D44: 1 | E44: 2 | F44: 25 | G44: 19 | H44: 15
A45: 01312 | B45: 2 | C45: 36 | D45: 1 | E45: 2 | F45: 25 | G45: 19 | H45: 15
A46: 01313 | B46: 2 | C46: 36 | D46: 1 | E46: 2 | F46: 25 | G46: 19 | H46: 15
A47: 01321 | B47: 2 | C47: 36 | D47: 1 | E47: 2 | F47: 25 | G47: 19 | H47: 15
A48: 01322 | B48: 2 | C48: 36 | D48: 1 | E48: 2 | F48: 25 | G48: 19 | H48: 15
A49: 01323 | B49: 2 | C49: 36 | D49: 1 | E49: 2 | F49: 25 | G49: 19 | H49: 15
A50: 01331 | B50: 2 | C50: 36 | D50: 1 | E50: 2 | F50: 25 | G50: 19 | H50: 15
A51: 01332 | B51: 2 | C51: 36 | D51: 1 | E51: 2 | F51: 25 | G51: 19 | H51: 15
A52: 01333 | B52: 2 | C52: 36 | D52: 1 | E52: 2 | F52: 25 | G52: 19 | H52: 15
A53: 02111 | B53: 12 | C53: 24 | D53: 6 | E53: 10 | F53: 14 | G53: 18 | H53: 16
A54: 02112 | B54: 12 | C54: 24 | D54: 6 | E54: 10 | F54: 14 | G54: 18 | H54: 16
A55: 02113 | B55: 12 | C55: 24 | D55: 6 | E55: 10 | F55: 14 | G55: 18 | H55: 16
A56: 02121 | B56: 12 | C56: 24 | D56: 6 | E56: 10 | F56: 14 | G56: 18 | H56: 16
A57: 02122 | B57: 12 | C57: 24 | D57: 6 | E57: 10 | F57: 14 | G57: 18 | H57: 16
A58: 02123 | B58: 12 | C58: 24 | D58: 6 | E58: 10 | F58: 14 | G58: 18 | H58: 16
A59: 02131 | B59: 11.5 | C59: 23 | D59: 5.8 | E59: 13.5 | F59: 13.5 | G59: 17.3 | H59: 15.4
A60: 02132 | B60: 11.5 | C60: 23 | D60: 5.8 | E60: 13.5 | F60: 13.5 | G60: 17.3 | H60: 15.4
A61: 02133 | B61: 11.5 | C61: 23 | D61: 5.8 | E61: 13.5 | F61: 13.5 | G61: 17.3 | H61: 15.4
A62: 02211 | B62: 4 | C62: 33 | D62: 2 | E62: 3 | F62: 23 | G62: 23 | H62: 12
A63: 02212 | B63: 4 | C63: 33 | D63: 2 | E63: 3 | F63: 23 | G63: 23 | H63: 12
A64: 02213 | B64: 3.8 | C64: 31.4 | D64: 1.9 | E64: 2.9 | F64: 26.7 | G64: 21.9 | H64: 11.4
A65: 02221 | B65: 3.8 | C65: 31.4 | D65: 1.9 | E65: 2.9 | F65: 26.7 | G65: 21.9 | H65: 11.4
A66: 02222 | B66: 4 | C66: 33 | D66: 2 | E66: 3 | F66: 23 | G66: 23 | H66: 12
A67: 02223 | B67: 3.8 | C67: 31.4 | D67: 1.9 | E67: 2.9 | F67: 26.7 | G67: 21.9 | H67: 11.4
A68: 02231 | B68: 3.7 | C68: 30.8 | D68: 1.9 | E68: 4.7 | F68: 26.2 | G68: 21.5 | H68: 11.2
A69: 02232 | B69: 3.9 | C69: 32.2 | D69: 2 | E69: 4.9 | F69: 22.6 | G69: 22.6 | H69: 11.8
A70: 02233 | B70: 3.7 | C70: 30.8 | D70: 1.9 | E70: 4.7 | F70: 26.2 | G70: 21.5 | H70: 11.2
A71: 03111 | B71: 12 | C71: 24 | D71: 6 | E71: 10 | F71: 14 | G71: 18 | H71: 16
A72: 03112 | B72: 12 | C72: 24 | D72: 6 | E72: 10 | F72: 14 | G72: 18 | H72: 16
A73: 03113 | B73: 12 | C73: 24 | D73: 6 | E73: 10 | F73: 14 | G73: 18 | H73: 16
A74: 03121 | B74: 12 | C74: 24 | D74: 6 | E74: 10 | F74: 14 | G74: 18 | H74: 16
A75: 03122 | B75: 12 | C75: 24 | D75: 6 | E75: 10 | F75: 14 | G75: 18 | H75: 16
A76: 03123 | B76: 12 | C76: 24 | D76: 6 | E76: 10 | F76: 14 | G76: 18 | H76: 16
A77: 03131 | B77: 11.5 | C77: 23 | D77: 5.8 | E77: 13.5 | F77: 13.5 | G77: 17.3 | H77: 15.4
A78: 03132 | B78: 11.5 | C78: 23 | D78: 5.8 | E78: 13.5 | F78: 13.5 | G78: 17.3 | H78: 15.4
A79: 03133 | B79: 11.5 | C79: 23 | D79: 5.8 | E79: 13.5 | F79: 13.5 | G79: 17.3 | H79: 15.4
A80: 03211 | B80: 3 | C80: 18 | D80: 2 | E80: 23 | F80: 12 | G80: 37 | H80: 5
A81: 03212 | B81: 3 | C81: 18 | D81: 2 | E81: 23 | F81: 12 | G81: 37 | H81: 5
A82: 03213 | B82: 2.9 | C82: 17.1 | D82: 1.9 | E82: 21.9 | F82: 16.2 | G82: 35.2 | H82: 4.8
A83: 03221 | B83: 2.9 | C83: 17.1 | D83: 1.9 | E83: 21.9 | F83: 16.2 | G83: 35.2 | H83: 4.8
A84: 03222 | B84: 3 | C84: 18 | D84: 2 | E84: 23 | F84: 12 | G84: 37 | H84: 5
A85: 03223 | B85: 2.9 | C85: 17.1 | D85: 1.9 | E85: 21.9 | F85: 16.2 | G85: 35.2 | H85: 4.8
A86: 03231 | B86: 2.8 | C86: 16.8 | D86: 1.9 | E86: 23.4 | F86: 15.9 | G86: 34.5 | H86: 4.7
A87: 03232 | B87: 2.9 | C87: 17.6 | D87: 2 | E87: 24.5 | F87: 11.8 | G87: 36.3 | H87: 4.9
A88: 03233 | B88: 2.8 | C88: 16.8 | D88: 1.9 | E88: 23.4 | F88: 15.9 | G88: 34.5 | H88: 4.7
A89: 04111 | B89: 12 | C89: 24 | D89: 6 | E89: 10 | F89: 14 | G89: 18 | H89: 16
A90: 04112 | B90: 12 | C90: 24 | D90: 6 | E90: 10 | F90: 14 | G90: 18 | H90: 16
A91: 04113 | B91: 12 | C91: 24 | D91: 6 | E91: 10 | F91: 14 | G91: 18 | H91: 16
A92: 04121 | B92: 12 | C92: 24 | D92: 6 | E92: 10 | F92: 14 | G92: 18 | H92: 16
A93: 04122 | B93: 12 | C93: 24 | D93: 6 | E93: 10 | F93: 14 | G93: 18 | H93: 16
A94: 04123 | B94: 12 | C94: 24 | D94: 6 | E94: 10 | F94: 14 | G94: 18 | H94: 16
A95: 04131 | B95: 11.5 | C95: 23 | D95: 5.8 | E95: 13.5 | F95: 13.5 | G95: 17.3 | H95: 15.4
A96: 04132 | B96: 11.5 | C96: 23 | D96: 5.8 | E96: 13.5 | F96: 13.5 | G96: 17.3 | H96: 15.4
A97: 04133 | B97: 11.5 | C97: 23 | D97: 5.8 | E97: 13.5 | F97: 13.5 | G97: 17.3 | H97: 15.4
A98: 05111 | B98: 12 | C98: 24 | D98: 6 | E98: 10 | F98: 14 | G98: 18 | H98: 16
A99: 05112 | B99: 12 | C99: 24 | D99: 6 | E99: 10 | F99: 14 | G99: 18 | H99: 16
A100: 05113 | B100: 12 | C100: 24 | D100: 6 | E100: 10 | F100: 14 | G100: 18 | H100: 16
A101: 05121 | B101: 12 | C101: 24 | D101: 6 | E101: 10 | F101: 14 | G101: 18 | H101: 16
A102: 05122 | B102: 12 | C102: 24 | D102: 6 | E102: 10 | F102: 14 | G102: 18 | H102: 16
A103: 05123 | B103: 12 | C103: 24 | D103: 6 | E103: 10 | F103: 14 | G103: 18 | H103: 16
A104: 05131 | B104: 11.5 | C104: 23 | D104: 5.8 | E104: 13.5 | F104: 13.5 | G104: 17.3 | H104: 15.4
A105: 05132 | B105: 11.5 | C105: 23 | D105: 5.8 | E105: 13.5 | F105: 13.5 | G105: 17.3 | H105: 15.4
A106: 05133 | B106: 11.5 | C106: 23 | D106: 5.8 | E106: 13.5 | F106: 13.5 | G106: 17.3 | H106: 15.4
A107: 06111 | B107: 12 | C107: 24 | D107: 6 | E107: 10 | F107: 14 | G107: 18 | H107: 16
A108: 06112 | B108: 12 | C108: 24 | D108: 6 | E108: 10 | F108: 14 | G108: 18 | H108: 16
A109: 06113 | B109: 12 | C109: 24 | D109: 6 | E109: 10 | F109: 14 | G109: 18 | H109: 16
A110: 06121 | B110: 12 | C110: 24 | D110: 6 | E110: 10 | F110: 14 | G110: 18 | H110: 16
A111: 06122 | B111: 12 | C111: 24 | D111: 6 | E111: 10 | F111: 14 | G111: 18 | H111: 16
A112: 06123 | B112: 12 | C112: 24 | D112: 6 | E112: 10 | F112: 14 | G112: 18 | H112: 16
A113: 06131 | B113: 11.5 | C113: 23 | D113: 5.8 | E113: 13.5 | F113: 13.5 | G113: 17.3 | H113: 15.4
A114: 06132 | B114: 11.5 | C114: 23 | D114: 5.8 | E114: 13.5 | F114: 13.5 | G114: 17.3 | H114: 15.4
A115: 06133 | B115: 11.5 | C115: 23 | D115: 5.8 | E115: 13.5 | F115: 13.5 | G115: 17.3 | H115: 15.4
A116: 07111 | B116: 12 | C116: 24 | D116: 6 | E116: 10 | F116: 14 | G116: 18 | H116: 16
A117: 07112 | B117: 12 | C117: 24 | D117: 6 | E117: 10 | F117: 14 | G117: 18 | H117: 16
A118: 07113 | B118: 12 | C118: 24 | D118: 6 | E118: 10 | F118: 14 | G118: 18 | H118: 16
A119: 07121 | B119: 12 | C119: 24 | D119: 6 | E119: 10 | F119: 14 | G119: 18 | H119: 16
A120: 07122 | B120: 12 | C120: 24 | D120: 6 | E120: 10 | F120: 14 | G120: 18 | H120: 16
A121: 07123 | B121: 12 | C121: 24 | D121: 6 | E121: 10 | F121: 14 | G121: 18 | H121: 16
A122: 07131 | B122: 11.5 | C122: 23 | D122: 5.8 | E122: 13.5 | F122: 13.5 | G122: 17.3 | H122: 15.4
A123: 07132 | B123: 11.5 | C123: 23 | D123: 5.8 | E123: 13.5 | F123: 13.5 | G123: 17.3 | H123: 15.4
A124: 07133 | B124: 11.5 | C124: 23 | D124: 5.8 | E124: 13.5 | F124: 13.5 | G124: 17.3 | H124: 15.4
A125: 08111 | B125: 12 | C125: 24 | D125: 6 | E125: 10 | F125: 14 | G125: 18 | H125: 16
A126: 08112 | B126: 12 | C126: 24 | D126: 6 | E126: 10 | F126: 14 | G126: 18 | H126: 16
A127: 08113 | B127: 12 | C127: 24 | D127: 6 | E127: 10 | F127: 14 | G127: 18 | H127: 16
A128: 08121 | B128: 12 | C128: 24 | D128: 6 | E128: 10 | F128: 14 | G128: 18 | H128: 16
A129: 08122 | B129: 12 | C129: 24 | D129: 6 | E129: 10 | F129: 14 | G129: 18 | H129: 16
A130: 08123 | B130: 12 | C130: 24 | D130: 6 | E130: 10 | F130: 14 | G130: 18 | H130: 16
A131: 08131 | B131: 11.5 | C131: 23 | D131: 5.8 | E131: 13.5 | F131: 13.5 | G131: 17.3 | H131: 15.4
A132: 08132 | B132: 11.5 | C132: 23 | D132: 5.8 | E132: 13.5 | F132: 13.5 | G132: 17.3 | H132: 15.4
A133: 08133 | B133: 11.5 | C133: 23 | D133: 5.8 | E133: 13.5 | F133: 13.5 | G133: 17.3 | H133: 15.4
A134: 09111 | B134: 11 | C134: 13 | D134: 4 | E134: 13 | F134: 14 | G134: 24 | H134: 21
A135: 09112 | B135: 11 | C135: 13 | D135: 4 | E135: 13 | F135: 14 | G135: 24 | H135: 21
A136: 09113 | B136: 11 | C136: 13 | D136: 4 | E136: 13 | F136: 14 | G136: 24 | H136: 21
A137: 09121 | B137: 11 | C137: 13 | D137: 4 | E137: 13 | F137: 14 | G137: 24 | H137: 21
A138: 09122 | B138: 11 | C138: 13 | D138: 4 | E138: 13 | F138: 14 | G138: 24 | H138: 21
A139: 09123 | B139: 11 | C139: 13 | D139: 4 | E139: 13 | F139: 14 | G139: 24 | H139: 21
A140: 09131 | B140: 10.6 | C140: 12.5 | D140: 3.8 | E140: 16.4 | F140: 13.5 | G140: 23 | H140: 20.2
A141: 09132 | B141: 10.6 | C141: 12.5 | D141: 3.8 | E141: 16.4 | F141: 13.5 | G141: 23 | H141: 20.2
A142: 09133 | B142: 10.6 | C142: 12.5 | D142: 3.8 | E142: 16.4 | F142: 13.5 | G142: 23 | H142: 20.2
A143: 10111 | B143: 11 | C143: 13 | D143: 4 | E143: 13 | F143: 14 | G143: 24 | H143: 21
A144: 10112 | B144: 11 | C144: 13 | D144: 4 | E144: 13 | F144: 14 | G144: 24 | H144: 21
A145: 10113 | B145: 11 | C145: 13 | D145: 4 | E145: 13 | F145: 14 | G145: 24 | H145: 21
A146: 10121 | B146: 11 | C146: 13 | D146: 4 | E146: 13 | F146: 14 | G146: 24 | H146: 21
A147: 10122 | B147: 11 | C147: 13 | D147: 4 | E147: 13 | F147: 14 | G147: 24 | H147: 21
A148: 10123 | B148: 11 | C148: 13 | D148: 4 | E148: 13 | F148: 14 | G148: 24 | H148: 21
A149: 10131 | B149: 10.6 | C149: 12.5 | D149: 3.8 | E149: 16.4 | F149: 13.5 | G149: 23 | H149: 20.2
A150: 10132 | B150: 10.6 | C150: 12.5 | D150: 3.8 | E150: 16.4 | F150: 13.5 | G150: 23 | H150: 20.2
A151: 10133 | B151: 10.6 | C151: 12.5 | D151: 3.8 | E151: 16.4 | F151: 13.5 | G151: 23 | H151: 20.2
A152: 10211 | B152: 3 | C152: 24 | D152: 1 | E152: 13 | F152: 14 | G152: 27 | H152: 18
A153: 10212 | B153: 3 | C153: 24 | D153: 1 | E153: 13 | F153: 14 | G153: 27 | H153: 18
A154: 10213 | B154: 2.9 | C154: 22.9 | D154: 1 | E154: 12.4 | F154: 18.1 | G154: 25.6 | H154: 17.1
A155: 10221 | B155: 2.9 | C155: 22.9 | D155: 1 | E155: 12.4 | F155: 18.1 | G155: 25.6 | H155: 17.1
A156: 10222 | B156: 3 | C156: 24 | D156: 1 | E156: 13 | F156: 14 | G156: 27 | H156: 18
A157: 10223 | B157: 2.9 | C157: 22.9 | D157: 1 | E157: 12.4 | F157: 18.1 | G157: 25.6 | H157: 17.1
A158: 10231 | B158: 2.8 | C158: 22.4 | D158: 1 | E158: 14 | F158: 17.8 | G158: 25.2 | H158: 16.8
A159: 10232 | B159: 2.9 | C159: 23.5 | D159: 1.1 | E159: 14.7 | F159: 13.7 | G159: 26.5 | H159: 17.6
A160: 10233 | B160: 2.8 | C160: 22.4 | D160: 1 | E160: 14 | F160: 17.8 | G160: 25.2 | H160: 16.8
A161: 10311 | B161: 2 | C161: 27 | D161: 1 | E161: 16 | F161: 15 | G161: 26 | H161: 13
A162: 10312 | B162: 2 | C162: 27 | D162: 1 | E162: 16 | F162: 15 | G162: 26 | H162: 13
A163: 10313 | B163: 2 | C163: 27 | D163: 1 | E163: 16 | F163: 15 | G163: 26 | H163: 13
A164: 10321 | B164: 2 | C164: 27 | D164: 1 | E164: 16 | F164: 15 | G164: 26 | H164: 13
A165: 10322 | B165: 2 | C165: 27 | D165: 1 | E165: 16 | F165: 15 | G165: 26 | H165: 13
A166: 10323 | B166: 2 | C166: 27 | D166: 1 | E166: 16 | F166: 15 | G166: 26 | H166: 13
A167: 10331 | B167: 2 | C167: 27 | D167: 1 | E167: 16 | F167: 15 | G167: 26 | H167: 13
A168: 10332 | B168: 2 | C168: 27 | D168: 1 | E168: 16 | F168: 15 | G168: 26 | H168: 13
A169: 10333 | B169: 2 | C169: 27 | D169: 1 | E169: 16 | F169: 15 | G169: 26 | H169: 13
A170: 11111 | B170: 6 | C170: 31 | D170: 3 | E170: 5 | F170: 7 | G170: 34 | H170: 14
A171: 11112 | B171: 6 | C171: 31 | D171: 3 | E171: 5 | F171: 7 | G171: 34 | H171: 14
A172: 11113 | B172: 6 | C172: 31 | D172: 3 | E172: 5 | F172: 7 | G172: 34 | H172: 14
A173: 11121 | B173: 6 | C173: 31 | D173: 3 | E173: 5 | F173: 7 | G173: 34 | H173: 14
A174: 11122 | B174: 6 | C174: 31 | D174: 3 | E174: 5 | F174: 7 | G174: 34 | H174: 14
A175: 11123 | B175: 6 | C175: 31 | D175: 3 | E175: 5 | F175: 7 | G175: 34 | H175: 14
A176: 11131 | B176: 5.8 | C176: 29.8 | D176: 2.9 | E176: 8.6 | F176: 6.7 | G176: 32.7 | H176: 13.5
A177: 11132 | B177: 5.8 | C177: 29.8 | D177: 2.9 | E177: 8.6 | F177: 6.7 | G177: 32.7 | H177: 13.5
A178: 11133 | B178: 5.8 | C178: 29.8 | D178: 2.9 | E178: 8.6 | F178: 6.7 | G178: 32.7 | H178: 13.5
A179: 11211 | B179: 3 | C179: 24 | D179: 1 | E179: 13 | F179: 14 | G179: 27 | H179: 18
A180: 11212 | B180: 3 | C180: 24 | D180: 1 | E180: 13 | F180: 14 | G180: 27 | H180: 18
A181: 11213 | B181: 2.9 | C181: 22.9 | D181: 1 | E181: 12.4 | F181: 18.1 | G181: 25.6 | H181: 17.1
A182: 11221 | B182: 2.9 | C182: 22.9 | D182: 1 | E182: 12.4 | F182: 18.1 | G182: 25.6 | H182: 17.1
A183: 11222 | B183: 3 | C183: 24 | D183: 1 | E183: 13 | F183: 14 | G183: 27 | H183: 18
A184: 11223 | B184: 2.9 | C184: 22.9 | D184: 1 | E184: 12.4 | F184: 18.1 | G184: 25.6 | H184: 17.1
A185: 11231 | B185: 2.8 | C185: 22.4 | D185: 1 | E185: 14 | F185: 17.8 | G185: 25.2 | H185: 16.8
A186: 11232 | B186: 2.9 | C186: 23.5 | D186: 1.1 | E186: 14.7 | F186: 13.7 | G186: 26.5 | H186: 17.6
A187: 11233 | B187: 2.8 | C187: 22.4 | D187: 1 | E187: 14 | F187: 17.8 | G187: 25.2 | H187: 16.8
A188: 12111 | B188: 10 | C188: 33 | D188: 7 | E188: 5 | F188: 21 | G188: 18 | H188: 6
A189: 12112 | B189: 10 | C189: 33 | D189: 7 | E189: 5 | F189: 21 | G189: 18 | H189: 6
A190: 12113 | B190: 10 | C190: 33 | D190: 7 | E190: 5 | F190: 21 | G190: 18 | H190: 6
A191: 12121 | B191: 10 | C191: 33 | D191: 7 | E191: 5 | F191: 21 | G191: 18 | H191: 6
A192: 12122 | B192: 10 | C192: 33 | D192: 7 | E192: 5 | F192: 21 | G192: 18 | H192: 6
A193: 12123 | B193: 10 | C193: 33 | D193: 7 | E193: 5 | F193: 21 | G193: 18 | H193: 6
A194: 12131 | B194: 9.6 | C194: 31.7 | D194: 6.7 | E194: 8.6 | F194: 20.2 | G194: 17.3 | H194: 5.9
A195: 12132 | B195: 9.6 | C195: 31.7 | D195: 6.7 | E195: 8.6 | F195: 20.2 | G195: 17.3 | H195: 5.9
A196: 12133 | B196: 9.6 | C196: 31.7 | D196: 6.7 | E196: 8.6 | F196: 20.2 | G196: 17.3 | H196: 5.9
A197: 13111 | B197: 13 | C197: 29 | D197: 8 | E197: 11 | F197: 6 | G197: 23 | H197: 10
A198: 13112 | B198: 13 | C198: 29 | D198: 8 | E198: 11 | F198: 6 | G198: 23 | H198: 10
A199: 13113 | B199: 13 | C199: 29 | D199: 8 | E199: 11 | F199: 6 | G199: 23 | H199: 10
A200: 13121 | B200: 13 | C200: 29 | D200: 8 | E200: 11 | F200: 6 | G200: 23 | H200: 10
A201: 13122 | B201: 13 | C201: 29 | D201: 8 | E201: 11 | F201: 6 | G201: 23 | H201: 10
A202: 13123 | B202: 13 | C202: 29 | D202: 8 | E202: 11 | F202: 6 | G202: 23 | H202: 10
... 129 more rows
